Department Family,Entity,Supplier,Date,Invoice Id,Line Amount SUM,Project#,Po Budget Centre,Expense Area,Po Subjective,Expense Type,Description,Vendor Type Lookup Code,Wga Ref
Department of Health,Public Health England,DEPARTMENT FOR BUSINESS INNOVATION AND SKILLS,05-Jun-2017,4919327,204.00,NULL,HLN8,FCD: Salisbury Square London,66420,Water,INV IN DISPUTE EMAIL ATTACHED,PUBLIC SECTOR COMPANIES,BIS084
Department of Health,Public Health England,DEPARTMENT FOR BUSINESS INNOVATION AND SKILLS,05-Jun-2017,4919327,350.00,NULL,HLN8,FCD: Salisbury Square London,66710,Carbon Emission Allowances,INV IN DISPUTE EMAIL ATTACHED,PUBLIC SECTOR COMPANIES,BIS084
Department of Health,Public Health England,DEPARTMENT FOR BUSINESS INNOVATION AND SKILLS,05-Jun-2017,4919327,968.00,NULL,HLN8,FCD: Salisbury Square London,66107,Property Service Charges,INV IN DISPUTE EMAIL ATTACHED,PUBLIC SECTOR COMPANIES,BIS084
Department of Health,Public Health England,DEPARTMENT FOR BUSINESS INNOVATION AND SKILLS,05-Jun-2017,4919327,2483.00,NULL,HLN8,FCD: Salisbury Square London,68110,Security Costs,INV IN DISPUTE EMAIL ATTACHED,PUBLIC SECTOR COMPANIES,BIS084
Department of Health,Public Health England,DEPARTMENT FOR BUSINESS INNOVATION AND SKILLS,05-Jun-2017,4919327,3885.00,NULL,HLN8,FCD: Salisbury Square London,68426,Internal Buildings Planned Maintenance,INV IN DISPUTE EMAIL ATTACHED,PUBLIC SECTOR COMPANIES,BIS084
Department of Health,Public Health England,DEPARTMENT FOR BUSINESS INNOVATION AND SKILLS,05-Jun-2017,4919327,4794.00,NULL,HLN8,FCD: Salisbury Square London,68105,Cleaning Costs,INV IN DISPUTE EMAIL ATTACHED,PUBLIC SECTOR COMPANIES,BIS084
Department of Health,Public Health England,DEPARTMENT FOR BUSINESS INNOVATION AND SKILLS,05-Jun-2017,4919327,5607.00,NULL,HLN8,FCD: Salisbury Square London,66410,Electricity,INV IN DISPUTE EMAIL ATTACHED,PUBLIC SECTOR COMPANIES,BIS084
Department of Health,Public Health England,DEPARTMENT FOR BUSINESS INNOVATION AND SKILLS,05-Jun-2017,4919327,8334.00,NULL,HLN8,FCD: Salisbury Square London,68140,Sub-contracted Facilities Mgnt,INV IN DISPUTE EMAIL ATTACHED,PUBLIC SECTOR COMPANIES,BIS084
Department of Health,Public Health England,DEPARTMENT FOR BUSINESS INNOVATION AND SKILLS,05-Jun-2017,4919327,21408.00,NULL,HLN8,FCD: Salisbury Square London,66110,Rates,INV IN DISPUTE EMAIL ATTACHED,PUBLIC SECTOR COMPANIES,BIS084
Department of Health,Public Health England,DEPARTMENT FOR BUSINESS INNOVATION AND SKILLS,05-Jun-2017,4919327,70436.00,NULL,HLN8,FCD: Salisbury Square London,66105,Rent,INV IN DISPUTE EMAIL ATTACHED,PUBLIC SECTOR COMPANIES,BIS084
Department of Health,Public Health England,DEPARTMENT FOR BUSINESS INNOVATION AND SKILLS,05-Jun-2017,5138955,128.00,NULL,HLN8,FCD: Salisbury Square London,66420,Water,RENT RATES WATER INV IN DISPUTE EMAIL ATT,PUBLIC SECTOR COMPANIES,BIS084
Department of Health,Public Health England,DEPARTMENT FOR BUSINESS INNOVATION AND SKILLS,05-Jun-2017,5138955,1316.00,NULL,HLN8,FCD: Salisbury Square London,68110,Security Costs,RENT RATES WATER INV IN DISPUTE EMAIL ATT,PUBLIC SECTOR COMPANIES,BIS084
Department of Health,Public Health England,DEPARTMENT FOR BUSINESS INNOVATION AND SKILLS,05-Jun-2017,5138955,2448.00,NULL,HLN8,FCD: Salisbury Square London,68105,Cleaning Costs,RENT RATES WATER INV IN DISPUTE EMAIL ATT,PUBLIC SECTOR COMPANIES,BIS084
Department of Health,Public Health England,DEPARTMENT FOR BUSINESS INNOVATION AND SKILLS,05-Jun-2017,5138955,3211.00,NULL,HLN8,FCD: Salisbury Square London,66410,Electricity,RENT RATES WATER INV IN DISPUTE EMAIL ATT,PUBLIC SECTOR COMPANIES,BIS084
Department of Health,Public Health England,DEPARTMENT FOR BUSINESS INNOVATION AND SKILLS,05-Jun-2017,5138955,3483.00,NULL,HLN8,FCD: Salisbury Square London,66107,Property Service Charges,RENT RATES WATER INV IN DISPUTE EMAIL ATT,PUBLIC SECTOR COMPANIES,BIS084
Department of Health,Public Health England,DEPARTMENT FOR BUSINESS INNOVATION AND SKILLS,05-Jun-2017,5138955,3750.00,NULL,HLN8,FCD: Salisbury Square London,68140,Sub-contracted Facilities Mgnt,RENT RATES WATER INV IN DISPUTE EMAIL ATT,PUBLIC SECTOR COMPANIES,BIS084
Department of Health,Public Health England,DEPARTMENT FOR BUSINESS INNOVATION AND SKILLS,05-Jun-2017,5138955,10937.00,NULL,HLN8,FCD: Salisbury Square London,66110,Rates,RENT RATES WATER INV IN DISPUTE EMAIL ATT,PUBLIC SECTOR COMPANIES,BIS084
Department of Health,Public Health England,DEPARTMENT FOR BUSINESS INNOVATION AND SKILLS,05-Jun-2017,5138955,35614.00,NULL,HLN8,FCD: Salisbury Square London,66105,Rent,RENT RATES WATER INV IN DISPUTE EMAIL ATT,PUBLIC SECTOR COMPANIES,BIS084
Department of Health,Public Health England,DEPARTMENT FOR BUSINESS INNOVATION AND SKILLS,05-Jun-2017,5152929,128.00,NULL,HLN8,FCD: Salisbury Square London,66420,Water,INVOICE IN DISPUTE EMAIL ATTACHED FOR RENT JUL - SEP 15 - NO PO,PUBLIC SECTOR COMPANIES,BIS084
Department of Health,Public Health England,DEPARTMENT FOR BUSINESS INNOVATION AND SKILLS,05-Jun-2017,5152929,1316.00,NULL,HLN8,FCD: Salisbury Square London,68110,Security Costs,INVOICE IN DISPUTE EMAIL ATTACHED FOR RENT JUL - SEP 15 - NO PO,PUBLIC SECTOR COMPANIES,BIS084
Department of Health,Public Health England,DEPARTMENT FOR BUSINESS INNOVATION AND SKILLS,05-Jun-2017,5152929,2448.00,NULL,HLN8,FCD: Salisbury Square London,68105,Cleaning Costs,INVOICE IN DISPUTE EMAIL ATTACHED FOR RENT JUL - SEP 15 - NO PO,PUBLIC SECTOR COMPANIES,BIS084
Department of Health,Public Health England,DEPARTMENT FOR BUSINESS INNOVATION AND SKILLS,05-Jun-2017,5152929,3211.00,NULL,HLN8,FCD: Salisbury Square London,66410,Electricity,INVOICE IN DISPUTE EMAIL ATTACHED FOR RENT JUL - SEP 15 - NO PO,PUBLIC SECTOR COMPANIES,BIS084
Department of Health,Public Health England,DEPARTMENT FOR BUSINESS INNOVATION AND SKILLS,05-Jun-2017,5152929,3483.00,NULL,HLN8,FCD: Salisbury Square London,66107,Property Service Charges,INVOICE IN DISPUTE EMAIL ATTACHED FOR RENT JUL - SEP 15 - NO PO,PUBLIC SECTOR COMPANIES,BIS084
Department of Health,Public Health England,DEPARTMENT FOR BUSINESS INNOVATION AND SKILLS,05-Jun-2017,5152929,3750.00,NULL,HLN8,FCD: Salisbury Square London,68140,Sub-contracted Facilities Mgnt,INVOICE IN DISPUTE EMAIL ATTACHED FOR RENT JUL - SEP 15 - NO PO,PUBLIC SECTOR COMPANIES,BIS084
Department of Health,Public Health England,DEPARTMENT FOR BUSINESS INNOVATION AND SKILLS,05-Jun-2017,5152929,10937.00,NULL,HLN8,FCD: Salisbury Square London,66110,Rates,INVOICE IN DISPUTE EMAIL ATTACHED FOR RENT JUL - SEP 15 - NO PO,PUBLIC SECTOR COMPANIES,BIS084
Department of Health,Public Health England,DEPARTMENT FOR BUSINESS INNOVATION AND SKILLS,05-Jun-2017,5152929,35614.00,NULL,HLN8,FCD: Salisbury Square London,66105,Rent,INVOICE IN DISPUTE EMAIL ATTACHED FOR RENT JUL - SEP 15 - NO PO,PUBLIC SECTOR COMPANIES,BIS084
Department of Health,Public Health England,DEPARTMENT FOR BUSINESS INNOVATION AND SKILLS,05-Jun-2017,5223020,128.00,NULL,HLN8,FCD: Salisbury Square London,66420,Water,NO PO FLEETBANK HOUSE GROUND FLOOR SOUTH IN DISPUTE,PUBLIC SECTOR COMPANIES,BIS084
Department of Health,Public Health England,DEPARTMENT FOR BUSINESS INNOVATION AND SKILLS,05-Jun-2017,5223020,1316.00,NULL,HLN8,FCD: Salisbury Square London,68110,Security Costs,NO PO FLEETBANK HOUSE GROUND FLOOR SOUTH IN DISPUTE,PUBLIC SECTOR COMPANIES,BIS084
Department of Health,Public Health England,DEPARTMENT FOR BUSINESS INNOVATION AND SKILLS,05-Jun-2017,5223020,2448.00,NULL,HLN8,FCD: Salisbury Square London,68105,Cleaning Costs,NO PO FLEETBANK HOUSE GROUND FLOOR SOUTH IN DISPUTE,PUBLIC SECTOR COMPANIES,BIS084
Department of Health,Public Health England,DEPARTMENT FOR BUSINESS INNOVATION AND SKILLS,05-Jun-2017,5223020,3211.00,NULL,HLN8,FCD: Salisbury Square London,66410,Electricity,NO PO FLEETBANK HOUSE GROUND FLOOR SOUTH IN DISPUTE,PUBLIC SECTOR COMPANIES,BIS084
Department of Health,Public Health England,DEPARTMENT FOR BUSINESS INNOVATION AND SKILLS,05-Jun-2017,5223020,3483.00,NULL,HLN8,FCD: Salisbury Square London,66107,Property Service Charges,NO PO FLEETBANK HOUSE GROUND FLOOR SOUTH IN DISPUTE,PUBLIC SECTOR COMPANIES,BIS084
Department of Health,Public Health England,DEPARTMENT FOR BUSINESS INNOVATION AND SKILLS,05-Jun-2017,5223020,3750.00,NULL,HLN8,FCD: Salisbury Square London,68140,Sub-contracted Facilities Mgnt,NO PO FLEETBANK HOUSE GROUND FLOOR SOUTH IN DISPUTE,PUBLIC SECTOR COMPANIES,BIS084
Department of Health,Public Health England,DEPARTMENT FOR BUSINESS INNOVATION AND SKILLS,05-Jun-2017,5223020,10937.00,NULL,HLN8,FCD: Salisbury Square London,66110,Rates,NO PO FLEETBANK HOUSE GROUND FLOOR SOUTH IN DISPUTE,PUBLIC SECTOR COMPANIES,BIS084
Department of Health,Public Health England,DEPARTMENT FOR BUSINESS INNOVATION AND SKILLS,05-Jun-2017,5223020,35614.00,NULL,HLN8,FCD: Salisbury Square London,66105,Rent,NO PO FLEETBANK HOUSE GROUND FLOOR SOUTH IN DISPUTE,PUBLIC SECTOR COMPANIES,BIS084
Department of Health,Public Health England,DEPARTMENT FOR BUSINESS INNOVATION AND SKILLS,05-Jun-2017,5457696,128.00,NULL,HLN8,FCD: Salisbury Square London,66420,Water,NO PO - IN DISPUTE,PUBLIC SECTOR COMPANIES,BIS084
Department of Health,Public Health England,DEPARTMENT FOR BUSINESS INNOVATION AND SKILLS,05-Jun-2017,5457696,1316.00,NULL,HLN8,FCD: Salisbury Square London,68110,Security Costs,NO PO - IN DISPUTE,PUBLIC SECTOR COMPANIES,BIS084
Department of Health,Public Health England,DEPARTMENT FOR BUSINESS INNOVATION AND SKILLS,05-Jun-2017,5457696,2448.00,NULL,HLN8,FCD: Salisbury Square London,68105,Cleaning Costs,NO PO - IN DISPUTE,PUBLIC SECTOR COMPANIES,BIS084
Department of Health,Public Health England,DEPARTMENT FOR BUSINESS INNOVATION AND SKILLS,05-Jun-2017,5457696,3211.00,NULL,HLN8,FCD: Salisbury Square London,66410,Electricity,NO PO - IN DISPUTE,PUBLIC SECTOR COMPANIES,BIS084
Department of Health,Public Health England,DEPARTMENT FOR BUSINESS INNOVATION AND SKILLS,05-Jun-2017,5457696,3483.00,NULL,HLN8,FCD: Salisbury Square London,66107,Property Service Charges,NO PO - IN DISPUTE,PUBLIC SECTOR COMPANIES,BIS084
Department of Health,Public Health England,DEPARTMENT FOR BUSINESS INNOVATION AND SKILLS,05-Jun-2017,5457696,3750.00,NULL,HLN8,FCD: Salisbury Square London,68140,Sub-contracted Facilities Mgnt,NO PO - IN DISPUTE,PUBLIC SECTOR COMPANIES,BIS084
Department of Health,Public Health England,DEPARTMENT FOR BUSINESS INNOVATION AND SKILLS,05-Jun-2017,5457696,10937.00,NULL,HLN8,FCD: Salisbury Square London,66110,Rates,NO PO - IN DISPUTE,PUBLIC SECTOR COMPANIES,BIS084
Department of Health,Public Health England,DEPARTMENT FOR BUSINESS INNOVATION AND SKILLS,05-Jun-2017,5457696,35614.00,NULL,HLN8,FCD: Salisbury Square London,66105,Rent,NO PO - IN DISPUTE,PUBLIC SECTOR COMPANIES,BIS084
Department of Health,Public Health England,DEPARTMENT FOR BUSINESS INNOVATION AND SKILLS,05-Jun-2017,5608144,135.00,NULL,HLN8,FCD: Salisbury Square London,66420,Water,"INVOICE IN QUERY AS MOTO HAS NOT BEEN SIGNED, SEE NOTES",PUBLIC SECTOR COMPANIES,BIS084
Department of Health,Public Health England,DEPARTMENT FOR BUSINESS INNOVATION AND SKILLS,05-Jun-2017,5608144,1332.00,NULL,HLN8,FCD: Salisbury Square London,68110,Security Costs,"INVOICE IN QUERY AS MOTO HAS NOT BEEN SIGNED, SEE NOTES",PUBLIC SECTOR COMPANIES,BIS084
Department of Health,Public Health England,DEPARTMENT FOR BUSINESS INNOVATION AND SKILLS,05-Jun-2017,5608144,2514.00,NULL,HLN8,FCD: Salisbury Square London,68105,Cleaning Costs,"INVOICE IN QUERY AS MOTO HAS NOT BEEN SIGNED, SEE NOTES",PUBLIC SECTOR COMPANIES,BIS084
Department of Health,Public Health England,DEPARTMENT FOR BUSINESS INNOVATION AND SKILLS,05-Jun-2017,5608144,3372.00,NULL,HLN8,FCD: Salisbury Square London,66410,Electricity,"INVOICE IN QUERY AS MOTO HAS NOT BEEN SIGNED, SEE NOTES",PUBLIC SECTOR COMPANIES,BIS084
Department of Health,Public Health England,DEPARTMENT FOR BUSINESS INNOVATION AND SKILLS,05-Jun-2017,5608144,3679.00,NULL,HLN8,FCD: Salisbury Square London,66107,Property Service Charges,"INVOICE IN QUERY AS MOTO HAS NOT BEEN SIGNED, SEE NOTES",PUBLIC SECTOR COMPANIES,BIS084
Department of Health,Public Health England,DEPARTMENT FOR BUSINESS INNOVATION AND SKILLS,05-Jun-2017,5608144,3889.00,NULL,HLN8,FCD: Salisbury Square London,68140,Sub-contracted Facilities Mgnt,"INVOICE IN QUERY AS MOTO HAS NOT BEEN SIGNED, SEE NOTES",PUBLIC SECTOR COMPANIES,BIS084
Department of Health,Public Health England,DEPARTMENT FOR BUSINESS INNOVATION AND SKILLS,05-Jun-2017,5608144,13329.00,NULL,HLN8,FCD: Salisbury Square London,66110,Rates,"INVOICE IN QUERY AS MOTO HAS NOT BEEN SIGNED, SEE NOTES",PUBLIC SECTOR COMPANIES,BIS084
Department of Health,Public Health England,DEPARTMENT FOR BUSINESS INNOVATION AND SKILLS,05-Jun-2017,5608144,36416.00,NULL,HLN8,FCD: Salisbury Square London,66105,Rent,"INVOICE IN QUERY AS MOTO HAS NOT BEEN SIGNED, SEE NOTES",PUBLIC SECTOR COMPANIES,BIS084
Department of Health,Public Health England,NORTH BRISTOL NHS TRUST,05-Jun-2017,5926148,5450.00,NULL,UFA3,HI: NCS Cervical,54360,Other Outsourced Services,North Bristol NHST: HPV Primary Screening Services SLA 16-17 admin support,NHS,NHTRVJNFT
Department of Health,Public Health England,NORTH BRISTOL NHS TRUST,05-Jun-2017,5926148,37207.00,NULL,UFA3,HI: NCS Cervical,54360,Other Outsourced Services,North Bristol NHST: HPV Primary Screening Services SLA 16-17 actual Screens,NHS,NHTRVJNFT
Department of Health,Public Health England,NATIONAL CENTRE FOR SOCIAL RESEARCH,05-Jun-2017,5967752,215148.25,NULL,UHE5,HI: National D&N Survey � Year 6 to 9 Prog,54360,Other Outsourced Services,"National Diet and Nutrition Survey NDNS Y6-10, ",NULL,NOT CGA
Department of Health,Public Health England,NATIONAL CENTRE FOR SOCIAL RESEARCH,05-Jun-2017,5967752,452230.75,NULL,UHE5,HI: National D&N Survey � Year 6 to 9 Prog,54360,Other Outsourced Services,National Diet and Nutrition Survey NDNS Y6-9,NULL,NOT CGA
Department of Health,Public Health England,NHS CONFEDERATION,05-Jun-2017,5967769,11000.00,NULL,VEA7,VAC: Vaccines and Countermeasures C&A Programmes,64105,Advertising (non recruitment),6527838,NHS,NOT CGA
Department of Health,Public Health England,NHS CONFEDERATION,05-Jun-2017,5967769,55000.00,NULL,VEA7,VAC: Vaccines and Countermeasures C&A Programmes,64105,Advertising (non recruitment),PSBC/PCOE No:6753 - NHS Flu Fighters Campaign ,NHS,NOT CGA
Department of Health,Public Health England,EDF ENERGY,05-Jun-2017,6002194,16203.05,NULL,JSR0,NIS: Porton Site Services Facilities Project Centre,66410,Electricity,ELECTRICITY 01.03.17-31.03.17 PORTON 6510920,VENDOR,NOT CGA
Department of Health,Public Health England,EDF ENERGY,05-Jun-2017,6002194,81015.26,NULL,JSR0,NIS: Porton Site Services Facilities Project Centre,66410,Electricity,Supply of Electricity for PHE Porton Down,VENDOR,NOT CGA
Department of Health,Public Health England,ROYAL FREE LONDON NHS FOUNDATION TRUST,05-Jun-2017,6002345,41303.00,NULL,UFA2,HI: NCS Breast,54360,Other Outsourced Services,Royal Free London NHSFT: Breast Age Extension 17-18 North London (EBA). Fixed Price SLA -,VENDOR,NHTRALNFT
Department of Health,Public Health England,INFOMAX LTD,05-Jun-2017,6015117,53968.81,NULL,VEA7,VAC: Vaccines and Countermeasures C&A Programmes,61610,Software Maint & Support Costs,6526909 F/B,NULL,NOT CGA
Department of Health,Public Health England,INFOMAX LTD,05-Jun-2017,6015117,80952.84,NULL,VEA7,VAC: Vaccines and Countermeasures C&A Programmes,61610,Software Maint & Support Costs,ImmForm Managed Services Contract Extension 1 ,NULL,NOT CGA
Department of Health,Public Health England,INFOMAX LTD,05-Jun-2017,6015117,188891.22,NULL,VEA7,VAC: Vaccines and Countermeasures C&A Programmes,61610,Software Maint & Support Costs,ImmForm Managed Services Contract extension for up to 6mths,NULL,NOT CGA
Department of Health,Public Health England,SYMANTEC LIMITED,05-Jun-2017,6020229,8640.00,NULL,PQB1,FCD: ICT,61610,Software Maint & Support Costs,6564027,VENDOR,NOT CGA
Department of Health,Public Health England,SYMANTEC LIMITED,05-Jun-2017,6020229,43200.00,NULL,PQB1,FCD: ICT,61610,Software Maint & Support Costs,6000 Email Safeguard @ 0.60 x 12,VENDOR,NOT CGA
Department of Health,Public Health England,ST GEORGES HEALTHCARE NHS TRUST,05-Jun-2017,6026177,35163.00,NULL,UFA2,HI: NCS Breast,54360,Other Outsourced Services,St George's Healthcare NHS Trust - Breast Age Extension 2017-18 South West London (HWA). Fixed Price SLA,NHS,NHTRJ7NFT
Department of Health,Public Health England,ROYAL FREE LONDON NHS FOUNDATION TRUST,05-Jun-2017,6040209,41303.00,NULL,UFA2,HI: NCS Breast,54360,Other Outsourced Services,Royal Free London NHSFT: Breast Age Extension 17-18 North London (EBA). Fixed Price SLA -,VENDOR,NHTRALNFT
Department of Health,Public Health England,ILLUMINA CAMBRIDGE LTD,05-Jun-2017,6163150,1156.24,NULL,FFD3,NIS: CNGSS,41120,Kits: General,MISEQ REAGENT KIT V2 (300CYCLE),VENDOR,NOT CGA
Department of Health,Public Health England,ILLUMINA CAMBRIDGE LTD,05-Jun-2017,6163150,2585.30,NULL,FFD3,NIS: CNGSS,41120,Kits: General,HISEQ� RAPID DUO CBOT? V2 SAMPLE LOADING KIT,VENDOR,NOT CGA
Department of Health,Public Health England,ILLUMINA CAMBRIDGE LTD,05-Jun-2017,6163150,6092.63,NULL,FFD3,NIS: CNGSS,41120,Kits: General,6562883-1,VENDOR,NOT CGA
Department of Health,Public Health England,ILLUMINA CAMBRIDGE LTD,05-Jun-2017,6163150,10904.20,NULL,FFD3,NIS: CNGSS,41120,Kits: General,HISEQ� RAPID SBS KIT V2 (200 CYCLE),VENDOR,NOT CGA
Department of Health,Public Health England,ILLUMINA CAMBRIDGE LTD,05-Jun-2017,6163150,15817.40,NULL,FFD3,NIS: CNGSS,41120,Kits: General,HISEQ� RAPID PE CLUSTER KIT V2,VENDOR,NOT CGA
Department of Health,Public Health England,PARAGON DATA ANALYTICS LIMITED,05-Jun-2017,6167439,4433.00,NULL,UGA8,MKT: Data and CRM,59036,Social Marketing - Direct Marketing,6564184,VENDOR,NOT CGA
Department of Health,Public Health England,PARAGON DATA ANALYTICS LIMITED,05-Jun-2017,6167439,22165.00,NULL,UGA8,MKT: Data and CRM,59036,Social Marketing - Direct Marketing,2017 April + May costs Database BAU Retainer,VENDOR,NOT CGA
Department of Health,Public Health England,EMCOR GROUP UK PLC,05-Jun-2017,6168178,443.96,NULL,GGM1,NIS: Colindale Estates Management,68120,Grounds Maintenance,6549222,VENDOR,NOT CGA
Department of Health,Public Health England,EMCOR GROUP UK PLC,05-Jun-2017,6168178,665.94,NULL,GGM1,NIS: Colindale Estates Management,54360,Other Outsourced Services,6549222,VENDOR,NOT CGA
Department of Health,Public Health England,EMCOR GROUP UK PLC,05-Jun-2017,6168178,2219.80,NULL,GGM1,NIS: Colindale Estates Management,68120,Grounds Maintenance,GROUNDS MAINTENANCE,VENDOR,NOT CGA
Department of Health,Public Health England,EMCOR GROUP UK PLC,05-Jun-2017,6168178,3329.70,NULL,GGM1,NIS: Colindale Estates Management,54360,Other Outsourced Services,MANAGEMENT,VENDOR,NOT CGA
Department of Health,Public Health England,EMCOR GROUP UK PLC,05-Jun-2017,6168178,3884.65,NULL,GGM1,NIS: Colindale Estates Management,68105,Cleaning Costs,6549222,VENDOR,NOT CGA
Department of Health,Public Health England,EMCOR GROUP UK PLC,05-Jun-2017,6168178,6104.45,NULL,GGM1,NIS: Colindale Estates Management,68110,Security Costs,6549222,VENDOR,NOT CGA
Department of Health,Public Health England,EMCOR GROUP UK PLC,05-Jun-2017,6168178,19423.25,NULL,GGM1,NIS: Colindale Estates Management,68105,Cleaning Costs,CLEANING,VENDOR,NOT CGA
Department of Health,Public Health England,EMCOR GROUP UK PLC,05-Jun-2017,6168178,30522.25,NULL,GGM1,NIS: Colindale Estates Management,68110,Security Costs,SECURITY,VENDOR,NOT CGA
Department of Health,Public Health England,EDF ENERGY,05-Jun-2017,6169259,18751.02,NULL,JSR0,NIS: Porton Site Services Facilities Project Centre,66410,Electricity,ELECTRICITY 01.04.17-30.04.17 PORTON 6510920 NBI,VENDOR,NOT CGA
Department of Health,Public Health England,EDF ENERGY,05-Jun-2017,6169259,93755.11,NULL,JSR0,NIS: Porton Site Services Facilities Project Centre,66410,Electricity,Supply of Electricity for PHE Porton Down,VENDOR,NOT CGA
Department of Health,Public Health England,UNIVERSITY OF SOUTHAMPTON,05-Jun-2017,6178262,69133.00,NULL,KFB3,HI: Epidemiology and Surveillance,54360,Other Outsourced Services,Modelled estimates for small areas for England (P754),PUBLIC SECTOR COMPANIES,NOT CGA
Department of Health,Public Health England,NHS ENGLAND,05-Jun-2017,6180100,67500.00,NULL,VBA1,HP: Health Protection Directorate Office,54345,Other Subcontracted Services,PHE contribution to SDU funding for 2017/18 (to be invoiced against quarterly),NHS,NSP033
Department of Health,Public Health England,VODAFONE LIMITED,05-Jun-2017,6180107,10792.92,NULL,VEA6,VAC: Vaccines and Countermeasures Panflu Programmes,54360,Other Outsourced Services,6538765,VENDOR,NOT CGA
Department of Health,Public Health England,VODAFONE LIMITED,05-Jun-2017,6180107,53964.58,NULL,VEA6,VAC: Vaccines and Countermeasures Panflu Programmes,54360,Other Outsourced Services,National Pandemic Flu Service (NPFS) Core telephony support ,VENDOR,NOT CGA
Department of Health,Public Health England,NLA MEDIA ACCESS LIMITED,05-Jun-2017,6180139,5381.20,NULL,RFJ1,COMS: Corporate Communications,74130,Operating Licences (Non-IT) & Accreditation Fees,6563843,VENDOR,NOT CGA
Department of Health,Public Health England,NLA MEDIA ACCESS LIMITED,05-Jun-2017,6180139,26906.00,NULL,RFJ1,COMS: Corporate Communications,74130,Operating Licences (Non-IT) & Accreditation Fees,NLA Licence renewal for 2017-18,VENDOR,NOT CGA
Department of Health,Public Health England,DEPARTMENT FOR BUSINESS INNOVATION AND SKILLS,05-Jun-2017,6180189,135.00,NULL,HLN8,FCD: Salisbury Square London,66420,Water,FLEETBANK HO PROPERTY CHARGES 2016-17 QTR 1,PUBLIC SECTOR COMPANIES,BIS084
Department of Health,Public Health England,DEPARTMENT FOR BUSINESS INNOVATION AND SKILLS,05-Jun-2017,6180189,1332.00,NULL,HLN8,FCD: Salisbury Square London,68110,Security Costs,FLEETBANK HO PROPERTY CHARGES 2016-17 QTR 1,PUBLIC SECTOR COMPANIES,BIS084
Department of Health,Public Health England,DEPARTMENT FOR BUSINESS INNOVATION AND SKILLS,05-Jun-2017,6180189,2514.00,NULL,HLN8,FCD: Salisbury Square London,68105,Cleaning Costs,FLEETBANK HO PROPERTY CHARGES 2016-17 QTR 1,PUBLIC SECTOR COMPANIES,BIS084
Department of Health,Public Health England,DEPARTMENT FOR BUSINESS INNOVATION AND SKILLS,05-Jun-2017,6180189,3372.00,NULL,HLN8,FCD: Salisbury Square London,66410,Electricity,FLEETBANK HO PROPERTY CHARGES 2016-17 QTR 1,PUBLIC SECTOR COMPANIES,BIS084
Department of Health,Public Health England,DEPARTMENT FOR BUSINESS INNOVATION AND SKILLS,05-Jun-2017,6180189,3679.00,NULL,HLN8,FCD: Salisbury Square London,66107,Property Service Charges,FLEETBANK HO PROPERTY CHARGES 2016-17 QTR 1,PUBLIC SECTOR COMPANIES,BIS084
Department of Health,Public Health England,DEPARTMENT FOR BUSINESS INNOVATION AND SKILLS,05-Jun-2017,6180189,3889.00,NULL,HLN8,FCD: Salisbury Square London,68140,Sub-contracted Facilities Mgnt,FLEETBANK HO PROPERTY CHARGES 2016-17 QTR 1,PUBLIC SECTOR COMPANIES,BIS084
Department of Health,Public Health England,DEPARTMENT FOR BUSINESS INNOVATION AND SKILLS,05-Jun-2017,6180189,13329.00,NULL,HLN8,FCD: Salisbury Square London,66110,Rates,FLEETBANK HO PROPERTY CHARGES 2016-17 QTR 1,PUBLIC SECTOR COMPANIES,BIS084
Department of Health,Public Health England,DEPARTMENT FOR BUSINESS INNOVATION AND SKILLS,05-Jun-2017,6180189,36416.00,NULL,HLN8,FCD: Salisbury Square London,66105,Rent,FLEETBANK HO PROPERTY CHARGES 2016-17 QTR 1,PUBLIC SECTOR COMPANIES,BIS084
Department of Health,Public Health England,DEPARTMENT FOR BUSINESS INNOVATION AND SKILLS,05-Jun-2017,6180201,135.00,NULL,HLN8,FCD: Salisbury Square London,66420,Water,FLEETBANK HO PROPERTY CHARGES 2016-17 Q3,PUBLIC SECTOR COMPANIES,BIS084
Department of Health,Public Health England,DEPARTMENT FOR BUSINESS INNOVATION AND SKILLS,05-Jun-2017,6180201,1332.00,NULL,HLN8,FCD: Salisbury Square London,68110,Security Costs,FLEETBANK HO PROPERTY CHARGES 2016-17 Q3,PUBLIC SECTOR COMPANIES,BIS084
Department of Health,Public Health England,DEPARTMENT FOR BUSINESS INNOVATION AND SKILLS,05-Jun-2017,6180201,2514.00,NULL,HLN8,FCD: Salisbury Square London,68105,Cleaning Costs,FLEETBANK HO PROPERTY CHARGES 2016-17 Q3,PUBLIC SECTOR COMPANIES,BIS084
Department of Health,Public Health England,DEPARTMENT FOR BUSINESS INNOVATION AND SKILLS,05-Jun-2017,6180201,3372.00,NULL,HLN8,FCD: Salisbury Square London,66410,Electricity,FLEETBANK HO PROPERTY CHARGES 2016-17 Q3,PUBLIC SECTOR COMPANIES,BIS084
Department of Health,Public Health England,DEPARTMENT FOR BUSINESS INNOVATION AND SKILLS,05-Jun-2017,6180201,3679.00,NULL,HLN8,FCD: Salisbury Square London,66107,Property Service Charges,FLEETBANK HO PROPERTY CHARGES 2016-17 Q3,PUBLIC SECTOR COMPANIES,BIS084
Department of Health,Public Health England,DEPARTMENT FOR BUSINESS INNOVATION AND SKILLS,05-Jun-2017,6180201,3889.00,NULL,HLN8,FCD: Salisbury Square London,68140,Sub-contracted Facilities Mgnt,FLEETBANK HO PROPERTY CHARGES 2016-17 Q3,PUBLIC SECTOR COMPANIES,BIS084
Department of Health,Public Health England,DEPARTMENT FOR BUSINESS INNOVATION AND SKILLS,05-Jun-2017,6180201,13329.00,NULL,HLN8,FCD: Salisbury Square London,66110,Rates,FLEETBANK HO PROPERTY CHARGES 2016-17 Q3,PUBLIC SECTOR COMPANIES,BIS084
Department of Health,Public Health England,DEPARTMENT FOR BUSINESS INNOVATION AND SKILLS,05-Jun-2017,6180201,36416.00,NULL,HLN8,FCD: Salisbury Square London,66105,Rent,FLEETBANK HO PROPERTY CHARGES 2016-17 Q3,PUBLIC SECTOR COMPANIES,BIS084
Department of Health,Public Health England,DEPARTMENT FOR BUSINESS INNOVATION AND SKILLS,05-Jun-2017,6180204,-270.00,NULL,HLN8,FCD: Salisbury Square London,66420,Water,FLEETBANK HO PROPERTY CHARGES 2016-17 QTR 4,PUBLIC SECTOR COMPANIES,BIS084
Department of Health,Public Health England,DEPARTMENT FOR BUSINESS INNOVATION AND SKILLS,05-Jun-2017,6180204,1333.00,NULL,HLN8,FCD: Salisbury Square London,68110,Security Costs,FLEETBANK HO PROPERTY CHARGES 2016-17 QTR 4,PUBLIC SECTOR COMPANIES,BIS084
Department of Health,Public Health England,DEPARTMENT FOR BUSINESS INNOVATION AND SKILLS,05-Jun-2017,6180204,2656.00,NULL,HLN8,FCD: Salisbury Square London,68105,Cleaning Costs,FLEETBANK HO PROPERTY CHARGES 2016-17 QTR 4,PUBLIC SECTOR COMPANIES,BIS084
Department of Health,Public Health England,DEPARTMENT FOR BUSINESS INNOVATION AND SKILLS,05-Jun-2017,6180204,3691.00,NULL,HLN8,FCD: Salisbury Square London,68140,Sub-contracted Facilities Mgnt,FLEETBANK HO PROPERTY CHARGES 2016-17 QTR 4,PUBLIC SECTOR COMPANIES,BIS084
Department of Health,Public Health England,DEPARTMENT FOR BUSINESS INNOVATION AND SKILLS,05-Jun-2017,6180204,3970.00,NULL,HLN8,FCD: Salisbury Square London,66107,Property Service Charges,FLEETBANK HO PROPERTY CHARGES 2016-17 QTR 4,PUBLIC SECTOR COMPANIES,BIS084
Department of Health,Public Health England,DEPARTMENT FOR BUSINESS INNOVATION AND SKILLS,05-Jun-2017,6180204,4182.00,NULL,HLN8,FCD: Salisbury Square London,66110,Rates,FLEETBANK HO PROPERTY CHARGES 2016-17 QTR 4,PUBLIC SECTOR COMPANIES,BIS084
Department of Health,Public Health England,DEPARTMENT FOR BUSINESS INNOVATION AND SKILLS,05-Jun-2017,6180204,5312.00,NULL,HLN8,FCD: Salisbury Square London,66410,Electricity,FLEETBANK HO PROPERTY CHARGES 2016-17 QTR 4,PUBLIC SECTOR COMPANIES,BIS084
Department of Health,Public Health England,DEPARTMENT FOR BUSINESS INNOVATION AND SKILLS,05-Jun-2017,6180204,36414.00,NULL,HLN8,FCD: Salisbury Square London,66105,Rent,FLEETBANK HO PROPERTY CHARGES 2016-17 QTR 4,PUBLIC SECTOR COMPANIES,BIS084
Department of Health,Public Health England,UMEA UNIVERSITET CBRNE,06-Jun-2017,5963562,15055.01,110380,JKL0,HP: ERD Exercises Core Activities Project Centre,54345,Other Subcontracted Services,Specific contract 2015 72 04 WP3 - Umea contribution as part of CELESTE Consortium,VENDOR,NOT CGA
Department of Health,Public Health England,UMEA UNIVERSITET CBRNE,06-Jun-2017,5963562,24944.99,110380,JKL0,HP: ERD Exercises Core Activities Project Centre,54345,Other Subcontracted Services,Specific contract 2015 72 04 WP1 - Umea contribution as part of CELESTE Consortium,VENDOR,NOT CGA
Department of Health,Public Health England,UMEA UNIVERSITET CBRNE,06-Jun-2017,5963564,165000.00,110397,JKL0,HP: ERD Exercises Core Activities Project Centre,54345,Other Subcontracted Services,Specific contract 2015 72 02 WP2 - Umean contribution as part of CELESTE Consortium,VENDOR,NOT CGA
Department of Health,Public Health England,UNIVERSITY HOSPITALS COVENTRY & WARWICKSHIRE NHS TRUST,07-Jun-2017,6167242,26553.00,NULL,UFA2,HI: NCS Breast,54360,Other Outsourced Services,"University Hospitals Coventry & Warwickshire NHST - Breast Age Extension 17-18 Warwickshire, Solihull & Coventry. Fixed Price SLA - April 2017",PUBLIC SECTOR COMPANIES,NHTRKBNFT
Department of Health,Public Health England,SPARTA SYSTEMS LIMITED,07-Jun-2017,6167315,19809.00,NULL,RQB1,CORP: Health & Safety,61610,Software Maint & Support Costs,6565316,NULL,NOT CGA
Department of Health,Public Health England,SPARTA SYSTEMS LIMITED,07-Jun-2017,6167315,99045.00,NULL,RQB1,CORP: Health & Safety,61610,Software Maint & Support Costs,TRACKWISE - Renewal of Product Support and Maintenance,NULL,NOT CGA
Department of Health,Public Health England,EMCOR GROUP UK PLC,07-Jun-2017,6167464,68638.20,108912,JSM0,NIS: Porton FM Engineering Maintenance Svs Facilities Project Centre,54360,Other Outsourced Services,6563164,VENDOR,NOT CGA
Department of Health,Public Health England,EMCOR GROUP UK PLC,07-Jun-2017,6167464,343191.00,108912,JSM0,NIS: Porton FM Engineering Maintenance Svs Facilities Project Centre,54360,Other Outsourced Services,Emcor Engineering services baseline cost (yr8) ,VENDOR,NOT CGA
Department of Health,Public Health England,MEC,07-Jun-2017,6168093,5040.38,NULL,UMA4,MKT: Ageing Well: Early Diagnosis,59103,Social Marketing - Digital,6563841,VENDOR,NOT CGA
Department of Health,Public Health England,MEC,07-Jun-2017,6168093,25201.90,NULL,UMA4,MKT: Ageing Well: Early Diagnosis,59103,Social Marketing - Digital,Be Clear on Cancer � Always on - social media management,VENDOR,NOT CGA
Department of Health,Public Health England,PROLOG,07-Jun-2017,6170327,13661.27,NULL,UGC1,MKT: Prolog Contracts,59002,Social Marketing - Fulfilment,6564539,VENDOR,NOT CGA
Department of Health,Public Health England,PROLOG,07-Jun-2017,6170327,68306.36,NULL,UGC1,MKT: Prolog Contracts,59002,Social Marketing - Fulfilment,Prolog storage and distribution,VENDOR,NOT CGA
Department of Health,Public Health England,UCL CONSULTANTS LIMITED,07-Jun-2017,6189100,5000.00,NULL,UPA1,HI: HP Centre Wellbeing & MH,54360,Other Outsourced Services,6512087,VENDOR,NOT CGA
Department of Health,Public Health England,UCL CONSULTANTS LIMITED,07-Jun-2017,6189100,25000.00,NULL,UPA1,HI: HP Centre Wellbeing & MH,54360,Other Outsourced Services,PHE's contractual commitment towards addressing health equalities with the UCL Institute of Health Equity,VENDOR,NOT CGA
Department of Health,Public Health England,NHS SUPPLY CHAIN - VACCINES,07-Jun-2017,6190129,20000000.00,NULL,ZZZA,Balance Sheet,96293,NHSSC account: C&A vaccines,NHS SUPPLY CHAIN TFR OF FUNDS FOR ,NHS,DHCORE
Department of Health,Public Health England,PTS CONSULTING UK LIMITED,07-Jun-2017,6191234,1528.00,110303,ZZZA,Balance Sheet,93370,AUC - Professional Services,6553879/6553880/6553865,VENDOR,NOT CGA
Department of Health,Public Health England,PTS CONSULTING UK LIMITED,07-Jun-2017,6191234,1528.00,110304,ZZZA,Balance Sheet,93370,AUC - Professional Services,6553879/6553880/6553865,VENDOR,NOT CGA
Department of Health,Public Health England,PTS CONSULTING UK LIMITED,07-Jun-2017,6191234,1528.00,110298,ZZZA,Balance Sheet,93370,AUC - Professional Services,6553879/6553880/6553865,VENDOR,NOT CGA
Department of Health,Public Health England,PTS CONSULTING UK LIMITED,07-Jun-2017,6191234,7640.00,110303,ZZZA,Balance Sheet,93370,AUC - Professional Services,P20 ITT Production V1.0 to complete activities and deliverables in CEN178 - scoring ITT responses. Framework Partner T&C apply. Inclusive of PAF. CEI 181,VENDOR,NOT CGA
Department of Health,Public Health England,PTS CONSULTING UK LIMITED,07-Jun-2017,6191234,7640.00,110298,ZZZA,Balance Sheet,93370,AUC - Professional Services,P18 ITT Production V1.0 to complete activities and deliverables in CEN178 - scoring ITT responses. Framework Partner T&C apply. Inclusive of PAF. CEI 179,VENDOR,NOT CGA
Department of Health,Public Health England,PTS CONSULTING UK LIMITED,07-Jun-2017,6191234,7640.00,110304,ZZZA,Balance Sheet,93370,AUC - Professional Services,P23 ITT Production V1.0 to complete activities and deliverables in CEN178 - scoring ITT responses. Framework Partner T&C apply. Inclusive of PAF. CEI 180,VENDOR,NOT CGA
Department of Health,Public Health England,DERMAL TECHNOLOGY LABORATORY LIMITED,07-Jun-2017,6191356,16640.00,110598,JMY0,HP: ERD Science and Technology Project Centre,47240,Other Subcontracted Lab Servs,6568556,VENDOR,NOT CGA
Department of Health,Public Health England,DERMAL TECHNOLOGY LABORATORY LIMITED,07-Jun-2017,6191356,83200.00,110598,JMY0,HP: ERD Science and Technology Project Centre,47240,Other Subcontracted Lab Servs,S&T Team outsourced services,VENDOR,NOT CGA
Department of Health,Public Health England,IPSWICH HOSPITAL NHS TRUST,12-Jun-2017,5792242,10998.20,NULL,BPZ1,NIS: Ipswich Lab,66105,Rent,16/17 PHE Licence fee and service cost for Ipswich as per Pathology Partnership contract,PUBLIC SECTOR,NHTRGQNFT
Department of Health,Public Health England,IPSWICH HOSPITAL NHS TRUST,12-Jun-2017,5792242,10998.21,NULL,BPZ1,NIS: Ipswich Lab,66105,Rent,16/17 PHE Licence fee and service cost for Ipswich as per Pathology Partnership contract,PUBLIC SECTOR,NHTRGQNFT
Department of Health,Public Health England,IPSWICH HOSPITAL NHS TRUST,12-Jun-2017,5792242,10998.21,NULL,BPZ1,NIS: Ipswich Lab,66105,Rent,16/17 PHE Licence fee and service cost for Ipswich as per Pathology Partnership contract,PUBLIC SECTOR,NHTRGQNFT
Department of Health,Public Health England,KINGS COLLEGE HOSPITAL NHS TRUST,12-Jun-2017,6040239,49721.52,NULL,UFA5,HI: NCS Bowel,54360,Other Outsourced Services,King's College Hospital NHSFT: Service Agreement for the Provision of Bowel Scope Screening Services 16/17 - King's Screening Centre,NHS,NHTRJZFT
Department of Health,Public Health England,DX NETWORK EXCHANGE LIMITED,12-Jun-2017,6192186,37500.00,NULL,AFM4,NIS: Operations Support (Specialist),51305,Postage and Courier Fees,DE SUBSCRIPTION CHARGES,VENDOR,NOT CGA
Department of Health,Public Health England,LINK MICROTEK LTD,12-Jun-2017,6193102,160.00,109670,ZZZA,Balance Sheet,93343,"AUC - Furniture, Fixtures & Fittings",Delivery,VENDOR,NOT CGA
Department of Health,Public Health England,LINK MICROTEK LTD,12-Jun-2017,6193102,696.00,109670,ZZZA,Balance Sheet,93343,"AUC - Furniture, Fixtures & Fittings",Soft Case for EFA200/ELT400,VENDOR,NOT CGA
Department of Health,Public Health England,LINK MICROTEK LTD,12-Jun-2017,6193102,3284.00,109670,ZZZA,Balance Sheet,93343,"AUC - Furniture, Fixtures & Fittings",B-Field Probe A=3cm2,VENDOR,NOT CGA
Department of Health,Public Health England,LINK MICROTEK LTD,12-Jun-2017,6193102,4490.40,109670,ZZZA,Balance Sheet,93343,"AUC - Furniture, Fixtures & Fittings",6560395,VENDOR,NOT CGA
Department of Health,Public Health England,LINK MICROTEK LTD,12-Jun-2017,6193102,7824.00,109670,ZZZA,Balance Sheet,93343,"AUC - Furniture, Fixtures & Fittings","Exposure Level Tester 1HZ - 400kHZ Low frequency magnetic field safety evaluation instrument
Exposure Std: ICNIRP GP & Occ
Field strength mode from 320 uT to 80 mT Isotropic probe included
Rugged LCD meter with three channel scope output",VENDOR,NOT CGA
Department of Health,Public Health England,LINK MICROTEK LTD,12-Jun-2017,6193102,10488.00,109670,ZZZA,Balance Sheet,93343,"AUC - Furniture, Fixtures & Fittings","Broad Field Meter Including:
A hardcase which holds a meter and upto 4 probes. Power Supply 9VDC,100V-240VAC. 1m Shoulder Strap. 0.16m Non-Conductive Benchtop Tripod. 2m
Cable, USB interface for NBM-550. NBM-TS PC Transfer Software. Opera",VENDOR,NOT CGA
Department of Health,Public Health England,THE UNIVERSITY OF MANCHESTER,12-Jun-2017,6193107,103750.00,NULL,UBA7,HI: D&A: Evidence Application,47240,Other Subcontracted Lab Servs,"Additional Quarterly Payment- National Drug Treatment Monitoring System (NDTMS) to National Drug Evidence Centre (NDEC) covering the period -
1st Jan 2017 - 31st March 2017",PUBLIC SECTOR COMPANIES,NOT CGA
Department of Health,Public Health England,TRUVEN HEALTH ANALYTICS INC,12-Jun-2017,6193273,86539.19,NULL,LVS4,HP: CRCE Directorate,61615,IT Licences,"Database products:
Drugdex & Poisindex 30 - 40 users
Reprorisk & Tomes 30- 40 users
Martindale 30-40 users",VENDOR,NOT CGA
Department of Health,Public Health England,NORTH TEES & HARTLEPOOL NHS TRUST,12-Jun-2017,6196184,21793.00,NULL,UFA2,HI: NCS Breast,54360,Other Outsourced Services,North Tees & Hartlepool NHSFT - Breast Age Extension 2017-18 North Tees (ANT). Fixed Price SLA,NULL,NHTRVWNFT
Department of Health,Public Health England,NORTH TEES & HARTLEPOOL NHS TRUST,12-Jun-2017,6196184,21793.00,NULL,UFA2,HI: NCS Breast,54360,Other Outsourced Services,North Tees & Hartlepool NHSFT - Breast Age Extension 2017-18 North Tees (ANT). Fixed Price SLA -,NULL,NHTRVWNFT
Department of Health,Public Health England,EMCOR GROUP UK PLC,12-Jun-2017,6196455,8624.58,108911,JSM0,NIS: Porton FM Engineering Maintenance Svs Facilities Project Centre,68440,Reactive Maintenance,6567573,VENDOR,NOT CGA
Department of Health,Public Health England,EMCOR GROUP UK PLC,12-Jun-2017,6196455,43122.91,108911,JSM0,NIS: Porton FM Engineering Maintenance Svs Facilities Project Centre,68440,Reactive Maintenance,Reactive maintenance services for D&P and ancillary services (PBL) at Porton site.,VENDOR,NOT CGA
Department of Health,Public Health England,EDF ENERGY,12-Jun-2017,6199103,73658.31,NULL,GGM1,NIS: Colindale Estates Management,66410,Electricity,ELECTRICITY 01.05.2017 - 31.05.2017 COLINDALE,VENDOR,NOT CGA
Department of Health,Public Health England,NOTTINGHAM UNIVERSITY HOSPITALS NHS TRUST,12-Jun-2017,6199164,16266.00,NULL,UFA2,HI: NCS Breast,54360,Other Outsourced Services,Nottingham City Hospitals NHS Trust - Breast Age Extension 2017-18 Nottingham. Fixed Price SLA,NHS,NHTRX1NFT
Department of Health,Public Health England,NOTTINGHAM UNIVERSITY HOSPITALS NHS TRUST,12-Jun-2017,6199164,16266.00,NULL,UFA2,HI: NCS Breast,54360,Other Outsourced Services,Nottingham City Hospitals NHS Trust - Breast Age Extension 2017-18 Nottingham. Fixed Price SLA,NHS,NHTRX1NFT
Department of Health,Public Health England,IMPERIAL COLLEGE HEALTHCARE NHS TRUST,12-Jun-2017,6199197,33696.00,NULL,UFA2,HI: NCS Breast,54360,Other Outsourced Services,Imperial College Healthcare NHST - Breast Age Extension 2017-18 West of London (ECX). Fixed Price SLA ,NHS,NHTRYJNFT
Department of Health,Public Health England,UNIVERSITY HOSPITALS COVENTRY & WARWICKSHIRE NHS TRUST,12-Jun-2017,6199219,26553.00,NULL,UFA2,HI: NCS Breast,54360,Other Outsourced Services,"University Hospitals Coventry & Warwickshire NHST - Breast Age Extension 17-18 Warwickshire, Solihull & Coventry. Fixed Price SLA ",PUBLIC SECTOR COMPANIES,NHTRKBNFT
Department of Health,Public Health England,UNIVERSITY OF OXFORD,12-Jun-2017,6199274,41660.00,NULL,UFA2,HI: NCS Breast,54360,Other Outsourced Services,QUALTTY ASSURANCE IN THE CANCER SCREENING PROGRAMME ECM 2319 - Quality assurance and research deliverables,PUBLIC SECTOR COMPANIES,NOT CGA
Department of Health,Public Health England,UNIVERSITY OF OXFORD,12-Jun-2017,6199278,41660.00,NULL,UFA2,HI: NCS Breast,54360,Other Outsourced Services,QUALTTY ASSURANCE IN THE CANCER SCREENING PROGRAMME ECM 2319 - Quality assurance and research deliverables ,PUBLIC SECTOR COMPANIES,NOT CGA
Department of Health,Public Health England,ROCHE DIAGNOSTICS LIMITED,14-Jun-2017,5961855,71.38,NULL,BVY1,NIS: Bristol Lab,47105,Lab Equipment Repairs and Maintenance,6548225,VENDOR,NOT CGA
Department of Health,Public Health England,ROCHE DIAGNOSTICS LIMITED,14-Jun-2017,5961855,356.90,NULL,BVY1,NIS: Bristol Lab,47105,Lab Equipment Repairs and Maintenance,MagNA Lyser 230 V  41712162  Public Health England,VENDOR,NOT CGA
Department of Health,Public Health England,ROCHE DIAGNOSTICS LIMITED,14-Jun-2017,5961855,356.90,NULL,BPY1,NIS: Cambridge Lab Addenbrookes,47105,Lab Equipment Repairs and Maintenance,MagNA Lyser 230 V41316170 ,VENDOR,NOT CGA
Department of Health,Public Health England,ROCHE DIAGNOSTICS LIMITED,14-Jun-2017,5961855,356.90,NULL,BPY1,NIS: Cambridge Lab Addenbrookes,47105,Lab Equipment Repairs and Maintenance,MagNA Lyser 230 V41316166 ,VENDOR,NOT CGA
Department of Health,Public Health England,ROCHE DIAGNOSTICS LIMITED,14-Jun-2017,5961855,518.91,NULL,BFB3,NIS: Birmingham Lab Molecular Virology & Serology,47105,Lab Equipment Repairs and Maintenance,6548225,VENDOR,NOT CGA
Department of Health,Public Health England,ROCHE DIAGNOSTICS LIMITED,14-Jun-2017,5961855,653.27,NULL,EJY1,NIS: Laboratory Of Gastrointestinal Pathogens,47105,Lab Equipment Repairs and Maintenance,6548225,VENDOR,NOT CGA
Department of Health,Public Health England,ROCHE DIAGNOSTICS LIMITED,14-Jun-2017,5961855,730.92,NULL,FCT1,NIS: ARMHAI Reference Lab,47105,Lab Equipment Repairs and Maintenance,6548225,VENDOR,NOT CGA
Department of Health,Public Health England,ROCHE DIAGNOSTICS LIMITED,14-Jun-2017,5961855,873.68,NULL,BPY1,NIS: Cambridge Lab Addenbrookes,47105,Lab Equipment Repairs and Maintenance,6548225,VENDOR,NOT CGA
Department of Health,Public Health England,ROCHE DIAGNOSTICS LIMITED,14-Jun-2017,5961855,1827.32,NULL,JPC1,NIS: Site Operations Management,47105,Lab Equipment Repairs and Maintenance,LightCycler 2.0  1416860 ,VENDOR,NOT CGA
Department of Health,Public Health England,ROCHE DIAGNOSTICS LIMITED,14-Jun-2017,5961855,1827.32,NULL,BPY1,NIS: Cambridge Lab Addenbrookes,47105,Lab Equipment Repairs and Maintenance,LightCycler 2.0  1416254,VENDOR,NOT CGA
Department of Health,Public Health England,ROCHE DIAGNOSTICS LIMITED,14-Jun-2017,5961855,1827.32,NULL,CEJ1,NIS: Southampton Lab,47105,Lab Equipment Repairs and Maintenance,LightCycler 2.0  1415177,VENDOR,NOT CGA
Department of Health,Public Health England,ROCHE DIAGNOSTICS LIMITED,14-Jun-2017,5961855,1827.32,NULL,FCT1,NIS: ARMHAI Reference Lab,47105,Lab Equipment Repairs and Maintenance,LightCycler 2.0  1407541,VENDOR,NOT CGA
Department of Health,Public Health England,ROCHE DIAGNOSTICS LIMITED,14-Jun-2017,5961855,1827.32,NULL,BPY1,NIS: Cambridge Lab Addenbrookes,47105,Lab Equipment Repairs and Maintenance,LightCycler 2.0  1415997,VENDOR,NOT CGA
Department of Health,Public Health England,ROCHE DIAGNOSTICS LIMITED,14-Jun-2017,5961855,1827.32,NULL,JPC1,NIS: Site Operations Management,47105,Lab Equipment Repairs and Maintenance,LightCycler 2.0  1415360,VENDOR,NOT CGA
Department of Health,Public Health England,ROCHE DIAGNOSTICS LIMITED,14-Jun-2017,5961855,1827.32,NULL,FCT1,NIS: ARMHAI Reference Lab,47105,Lab Equipment Repairs and Maintenance,LightCycler 2.0  1407540,VENDOR,NOT CGA
Department of Health,Public Health England,ROCHE DIAGNOSTICS LIMITED,14-Jun-2017,5961855,1827.32,NULL,EUF1,NIS: Virus Reference Department General,47105,Lab Equipment Repairs and Maintenance,LightCycler 2.0  1407542,VENDOR,NOT CGA
Department of Health,Public Health England,ROCHE DIAGNOSTICS LIMITED,14-Jun-2017,5961855,2594.53,NULL,CEJ1,NIS: Southampton Lab,47105,Lab Equipment Repairs and Maintenance,MagNa Pure Compact Instrument  ,VENDOR,NOT CGA
Department of Health,Public Health England,ROCHE DIAGNOSTICS LIMITED,14-Jun-2017,5961855,2594.53,NULL,EUF1,NIS: Virus Reference Department General,47105,Lab Equipment Repairs and Maintenance,MagNa Pure Compact Instrument ,VENDOR,NOT CGA
Department of Health,Public Health England,ROCHE DIAGNOSTICS LIMITED,14-Jun-2017,5961855,2594.53,NULL,EUF1,NIS: Virus Reference Department General,47105,Lab Equipment Repairs and Maintenance,MagNa Pure Compact Instrument ,VENDOR,NOT CGA
Department of Health,Public Health England,ROCHE DIAGNOSTICS LIMITED,14-Jun-2017,5961855,2594.53,NULL,JPC1,NIS: Site Operations Management,47105,Lab Equipment Repairs and Maintenance,MagNa Pure Compact Instrument  MPCB501  ,VENDOR,NOT CGA
Department of Health,Public Health England,ROCHE DIAGNOSTICS LIMITED,14-Jun-2017,5961855,2594.53,NULL,EUF1,NIS: Virus Reference Department General,47105,Lab Equipment Repairs and Maintenance,MagNa Pure Compact Instrument  ,VENDOR,NOT CGA
Department of Health,Public Health England,ROCHE DIAGNOSTICS LIMITED,14-Jun-2017,5961855,2594.53,NULL,BFB3,NIS: Birmingham Lab Molecular Virology & Serology,47105,Lab Equipment Repairs and Maintenance,MagNa Pure Compact Instrument  ,VENDOR,NOT CGA
Department of Health,Public Health England,ROCHE DIAGNOSTICS LIMITED,14-Jun-2017,5961855,2594.53,NULL,EUF1,NIS: Virus Reference Department General,47105,Lab Equipment Repairs and Maintenance,MagNa Pure Compact Instrument,VENDOR,NOT CGA
Department of Health,Public Health England,ROCHE DIAGNOSTICS LIMITED,14-Jun-2017,5961855,3197.80,NULL,JPC1,NIS: Site Operations Management,47105,Lab Equipment Repairs and Maintenance,"LightCycler 480, 9621272",VENDOR,NOT CGA
Department of Health,Public Health England,ROCHE DIAGNOSTICS LIMITED,14-Jun-2017,5961855,3197.80,NULL,CEJ1,NIS: Southampton Lab,47105,Lab Equipment Repairs and Maintenance,"LightCycler 480, 96  20460",VENDOR,NOT CGA
Department of Health,Public Health England,ROCHE DIAGNOSTICS LIMITED,14-Jun-2017,5961855,3197.80,NULL,JPC1,NIS: Site Operations Management,47105,Lab Equipment Repairs and Maintenance,"LightCycler 480 II, 3845999",VENDOR,NOT CGA
Department of Health,Public Health England,ROCHE DIAGNOSTICS LIMITED,14-Jun-2017,5961855,3197.80,NULL,EUF1,NIS: Virus Reference Department General,47105,Lab Equipment Repairs and Maintenance,"LightCycler 480 II, 9626328  ",VENDOR,NOT CGA
Department of Health,Public Health England,ROCHE DIAGNOSTICS LIMITED,14-Jun-2017,5961855,3197.80,NULL,JPC1,NIS: Site Operations Management,47105,Lab Equipment Repairs and Maintenance,"LightCycler 480 II, 9625770  ",VENDOR,NOT CGA
Department of Health,Public Health England,ROCHE DIAGNOSTICS LIMITED,14-Jun-2017,5961855,3197.80,NULL,CEJ1,NIS: Southampton Lab,47105,Lab Equipment Repairs and Maintenance,"LightCycler 480 II, 96  25663",VENDOR,NOT CGA
Department of Health,Public Health England,ROCHE DIAGNOSTICS LIMITED,14-Jun-2017,5961855,3197.80,NULL,EUF1,NIS: Virus Reference Department General,47105,Lab Equipment Repairs and Maintenance,"LightCycler 480, 96   20412",VENDOR,NOT CGA
Department of Health,Public Health England,ROCHE DIAGNOSTICS LIMITED,14-Jun-2017,5961855,3266.35,NULL,EUF1,NIS: Virus Reference Department General,47105,Lab Equipment Repairs and Maintenance,MagNA Pure 961079 ,VENDOR,NOT CGA
Department of Health,Public Health England,ROCHE DIAGNOSTICS LIMITED,14-Jun-2017,5961855,3266.35,NULL,CEJ1,NIS: Southampton Lab,47105,Lab Equipment Repairs and Maintenance,MagNA Pure 96 Instrument,VENDOR,NOT CGA
Department of Health,Public Health England,ROCHE DIAGNOSTICS LIMITED,14-Jun-2017,5961855,3266.35,NULL,EUF1,NIS: Virus Reference Department General,47105,Lab Equipment Repairs and Maintenance,MagNA Pure 96 Instrument,VENDOR,NOT CGA
Department of Health,Public Health England,ROCHE DIAGNOSTICS LIMITED,14-Jun-2017,5961855,3266.35,NULL,JPC1,NIS: Site Operations Management,47105,Lab Equipment Repairs and Maintenance,MagNA Pure 96 Instrument,VENDOR,NOT CGA
Department of Health,Public Health England,ROCHE DIAGNOSTICS LIMITED,14-Jun-2017,5961855,3266.35,NULL,EUF1,NIS: Virus Reference Department General,47105,Lab Equipment Repairs and Maintenance,MagNA Pure 96  F91098 ,VENDOR,NOT CGA
Department of Health,Public Health England,ROCHE DIAGNOSTICS LIMITED,14-Jun-2017,5961855,3266.35,NULL,EUF1,NIS: Virus Reference Department General,47105,Lab Equipment Repairs and Maintenance,MagNA Pure 96 Instrument,VENDOR,NOT CGA
Department of Health,Public Health England,ROCHE DIAGNOSTICS LIMITED,14-Jun-2017,5961855,3266.35,NULL,EJY1,NIS: Laboratory Of Gastrointestinal Pathogens,47105,Lab Equipment Repairs and Maintenance,MagNA Pure 96 Instrument,VENDOR,NOT CGA
Department of Health,Public Health England,ROCHE DIAGNOSTICS LIMITED,14-Jun-2017,5961855,3417.00,NULL,CEJ1,NIS: Southampton Lab,47105,Lab Equipment Repairs and Maintenance,FLOW PSH Instrument ,VENDOR,NOT CGA
Department of Health,Public Health England,ROCHE DIAGNOSTICS LIMITED,14-Jun-2017,5961855,3821.78,NULL,JPC1,NIS: Site Operations Management,47105,Lab Equipment Repairs and Maintenance,6548225,VENDOR,NOT CGA
Department of Health,Public Health England,ROCHE DIAGNOSTICS LIMITED,14-Jun-2017,5961855,5191.79,NULL,EUF1,NIS: Virus Reference Department General,47105,Lab Equipment Repairs and Maintenance,MPLC Instrument 380  Public Health England,VENDOR,NOT CGA
Department of Health,Public Health England,ROCHE DIAGNOSTICS LIMITED,14-Jun-2017,5961855,5191.79,NULL,CEJ1,NIS: Southampton Lab,47105,Lab Equipment Repairs and Maintenance,MPLC Instrument343 ,VENDOR,NOT CGA
Department of Health,Public Health England,ROCHE DIAGNOSTICS LIMITED,14-Jun-2017,5961855,5191.79,NULL,CEJ1,NIS: Southampton Lab,47105,Lab Equipment Repairs and Maintenance,MPLC Instrument134 ,VENDOR,NOT CGA
Department of Health,Public Health England,ROCHE DIAGNOSTICS LIMITED,14-Jun-2017,5961855,5191.79,NULL,EUF1,NIS: Virus Reference Department General,47105,Lab Equipment Repairs and Maintenance,MPLC Instrument  45  ,VENDOR,NOT CGA
Department of Health,Public Health England,ROCHE DIAGNOSTICS LIMITED,14-Jun-2017,5961855,5576.88,NULL,CEJ1,NIS: Southampton Lab,47105,Lab Equipment Repairs and Maintenance,6548225,VENDOR,NOT CGA
Department of Health,Public Health England,ROCHE DIAGNOSTICS LIMITED,14-Jun-2017,5961855,8410.02,NULL,EUF1,NIS: Virus Reference Department General,47105,Lab Equipment Repairs and Maintenance,6548225,VENDOR,NOT CGA
Department of Health,Public Health England,EMCOR GROUP UK PLC,14-Jun-2017,6167458,15782.18,NULL,JSR0,NIS: Porton Site Services Facilities Project Centre,54345,Other Subcontracted Services,6562438,VENDOR,NOT CGA
Department of Health,Public Health England,EMCOR GROUP UK PLC,14-Jun-2017,6167458,78910.88,NULL,JSR0,NIS: Porton Site Services Facilities Project Centre,54345,Other Subcontracted Services,PHE Porton - Soft Services Baseline Contract ,VENDOR,NOT CGA
Department of Health,Public Health England,EMCOR GROUP UK PLC,14-Jun-2017,6167469,5770.29,NULL,JST1,NIS: Security,68110,Security Costs,6561688,VENDOR,NOT CGA
Department of Health,Public Health England,EMCOR GROUP UK PLC,14-Jun-2017,6167469,28851.46,NULL,JST1,NIS: Security,68110,Security Costs,"Security Baseline Contract, ",VENDOR,NOT CGA
Department of Health,Public Health England,ATLASSIAN SOFTWARE SYSTEMS PTY LIMITED,14-Jun-2017,6196504,5700.00,NULL,KDF5,FCD: Digital,61610,Software Maint & Support Costs,6561702,OVERSEAS,NOT CGA
Department of Health,Public Health England,ATLASSIAN SOFTWARE SYSTEMS PTY LIMITED,14-Jun-2017,6196504,28500.00,NULL,KDF5,FCD: Digital,61610,Software Maint & Support Costs,Jira licenses for Marketing,OVERSEAS,NOT CGA
Department of Health,Public Health England,ROYAL FREE LONDON NHS FOUNDATION TRUST,14-Jun-2017,6199195,42287.00,NULL,UFA2,HI: NCS Breast,54360,Other Outsourced Services,Royal Free London NHSFT: Breast Age Extension 17-18 North London (EBA). Fixed Price SLA ,VENDOR,NHTRALNFT
Department of Health,Public Health England,ST GEORGES HEALTHCARE NHS TRUST,14-Jun-2017,6199263,35163.00,NULL,UFA2,HI: NCS Breast,54360,Other Outsourced Services,St George's Healthcare NHS Trust - Breast Age Extension 2017-18 South West London (HWA). Fixed Price SLA ,NHS,NHTRJ7NFT
Department of Health,Public Health England,LOUGHBOROUGH UNIVERSITY ENTERPRISES LTD,14-Jun-2017,6199518,6083.33,NULL,UFA2,HI: NCS Breast,54360,Other Outsourced Services,6558779,VENDOR,NOT CGA
Department of Health,Public Health England,LOUGHBOROUGH UNIVERSITY ENTERPRISES LTD,14-Jun-2017,6199518,30416.66,NULL,UFA2,HI: NCS Breast,54360,Other Outsourced Services,Loughborough University Enterprises: PERFORMS 2014-Contract extension - PHE Project 1325 self-assessment scheme for breast screening programmes ,VENDOR,NOT CGA
Department of Health,Public Health England,HOMERTON UNIVERSITY HOSPITALS NHS FOUNDATION TRUST,14-Jun-2017,6200181,43657.92,NULL,UFA5,HI: NCS Bowel,54360,Other Outsourced Services,Homerton University Hospital NHSFT: Service Agreement for the Provision of Bowel Scope Screening Services 2016/17 - North East London Screening Centre,NHS,NHTRQXFT
Department of Health,Public Health England,ILLUMINA CAMBRIDGE LTD,14-Jun-2017,6200182,3672.82,NULL,FFD3,NIS: CNGSS,41135,Other laboratory Consumables,"SV-304-1003

S/N: 6002430
Start: 21 Mar 2017
End: 20 Mar 2018
Product Care cBot� Comprehensive Plan:",VENDOR,NOT CGA
Department of Health,Public Health England,ILLUMINA CAMBRIDGE LTD,14-Jun-2017,6200182,3672.82,NULL,FFD3,NIS: CNGSS,41135,Other laboratory Consumables,"SV-304-1003

S/N: 6002073
Start: 21 Mar 2017
End: 20 Mar 2018
Product Care cBot� Comprehensive Plan:",VENDOR,NOT CGA
Department of Health,Public Health England,ILLUMINA CAMBRIDGE LTD,14-Jun-2017,6200182,9538.45,NULL,FFD3,NIS: CNGSS,41135,Other laboratory Consumables,"SV-420-1003
S/N: M01760
Start: 21 Mar 2017
End: 20 Mar 2018
Product Care MiSeq� Comprehensive Plan:",VENDOR,NOT CGA
Department of Health,Public Health England,ILLUMINA CAMBRIDGE LTD,14-Jun-2017,6200182,9538.45,NULL,FFD3,NIS: CNGSS,41135,Other laboratory Consumables,"SV-420-1003
S/N: M01481
Start: 21 Mar 2017
End: 20 Mar 2018
Product Care MiSeq� Comprehensive Plan:",VENDOR,NOT CGA
Department of Health,Public Health England,ILLUMINA CAMBRIDGE LTD,14-Jun-2017,6200182,16957.50,NULL,FFD3,NIS: CNGSS,41135,Other laboratory Consumables,"SV-450-1002
S/N: NS500628
Start: 21 Mar 2017
End: 20 Mar 2018
Product Care NextSeq 500 Basic Plan:",VENDOR,NOT CGA
Department of Health,Public Health England,ILLUMINA CAMBRIDGE LTD,14-Jun-2017,6200182,28719.05,NULL,FFD3,NIS: CNGSS,41135,Other laboratory Consumables,6566795,VENDOR,NOT CGA
Department of Health,Public Health England,ILLUMINA CAMBRIDGE LTD,14-Jun-2017,6200182,50107.61,NULL,FFD3,NIS: CNGSS,41135,Other laboratory Consumables,"SV-402-1003
S/N: D00146
Start: 21 Mar 2017
End: 20 Mar 2018
Product Care HiSeq 2500 Comprehensive Plan:",VENDOR,NOT CGA
Department of Health,Public Health England,ILLUMINA CAMBRIDGE LTD,14-Jun-2017,6200182,50107.61,NULL,FFD3,NIS: CNGSS,41135,Other laboratory Consumables,"SV-402-1003
S/N: D00151
Start: 21 Mar 2017
End: 20 Mar 2018
Product Care HiSeq 2500 Comprehensive Plan:",VENDOR,NOT CGA
Department of Health,Public Health England,WILLIAMS LEA LIMITED,14-Jun-2017,6200207,4379.40,NULL,UMA3,MKT: Starting Well: Change4Life,59004,Social Marketing - Publishing,6566976,VENDOR,NOT CGA
Department of Health,Public Health England,WILLIAMS LEA LIMITED,14-Jun-2017,6200207,21897.00,NULL,UMA3,MKT: Starting Well: Change4Life,59004,Social Marketing - Publishing,Change4Life summer pack print management fee 2017/18,VENDOR,NOT CGA
Department of Health,Public Health England,CAMBRIDGE UNIVERSITY HOSPITAL NHS FOUNDATION TRUST,14-Jun-2017,6200317,11416.66,NULL,BPY1,NIS: Cambridge Lab Addenbrookes,66105,Rent,"Rental and service charge for Microbiology lab at Cambridge University Hospital as per contract to be signed.  15/16 figures used, up lift still to be agreed.
Oct 2016",NHS,NHTRGTFT
Department of Health,Public Health England,CAMBRIDGE UNIVERSITY HOSPITAL NHS FOUNDATION TRUST,14-Jun-2017,6200317,11416.66,NULL,BPY1,NIS: Cambridge Lab Addenbrookes,66105,Rent,"Rental and service charge for Microbiology lab at Cambridge University Hospital as per contract to be signed.  15/16 figures used, up lift still to be agreed.
June 2016",NHS,NHTRGTFT
Department of Health,Public Health England,CAMBRIDGE UNIVERSITY HOSPITAL NHS FOUNDATION TRUST,14-Jun-2017,6200317,11416.66,NULL,BPY1,NIS: Cambridge Lab Addenbrookes,66105,Rent,"Rental and service charge for Microbiology lab at Cambridge University Hospital as per contract to be signed.  15/16 figures used, up lift still to be agreed.
Sep 2016",NHS,NHTRGTFT
Department of Health,Public Health England,CAMBRIDGE UNIVERSITY HOSPITAL NHS FOUNDATION TRUST,14-Jun-2017,6200317,11416.66,NULL,BPY1,NIS: Cambridge Lab Addenbrookes,66105,Rent,"Rental and service charge for Microbiology lab at Cambridge University Hospital as per contract to be signed.  15/16 figures used, up lift still to be agreed.
April 2016",NHS,NHTRGTFT
Department of Health,Public Health England,CAMBRIDGE UNIVERSITY HOSPITAL NHS FOUNDATION TRUST,14-Jun-2017,6200317,11416.66,NULL,BPY1,NIS: Cambridge Lab Addenbrookes,66105,Rent,"Rental and service charge for Microbiology lab at Cambridge University Hospital as per contract to be signed.  15/16 figures used, up lift still to be agreed.
Dec 2016",NHS,NHTRGTFT
Department of Health,Public Health England,CAMBRIDGE UNIVERSITY HOSPITAL NHS FOUNDATION TRUST,14-Jun-2017,6200317,11416.66,NULL,BPY1,NIS: Cambridge Lab Addenbrookes,66105,Rent,"Rental and service charge for Microbiology lab at Cambridge University Hospital as per contract to be signed.  15/16 figures used, up lift still to be agreed.
July 2016",NHS,NHTRGTFT
Department of Health,Public Health England,CAMBRIDGE UNIVERSITY HOSPITAL NHS FOUNDATION TRUST,14-Jun-2017,6200317,11416.66,NULL,BPY1,NIS: Cambridge Lab Addenbrookes,66105,Rent,"Rental and service charge for Microbiology lab at Cambridge University Hospital as per contract to be signed.  15/16 figures used, up lift still to be agreed.
Aug 2016",NHS,NHTRGTFT
Department of Health,Public Health England,CAMBRIDGE UNIVERSITY HOSPITAL NHS FOUNDATION TRUST,14-Jun-2017,6200317,11416.66,NULL,BPY1,NIS: Cambridge Lab Addenbrookes,66105,Rent,"Rental and service charge for Microbiology lab at Cambridge University Hospital as per contract to be signed.  15/16 figures used, up lift still to be agreed.
May 2016",NHS,NHTRGTFT
Department of Health,Public Health England,CAMBRIDGE UNIVERSITY HOSPITAL NHS FOUNDATION TRUST,14-Jun-2017,6200317,11416.66,NULL,BPY1,NIS: Cambridge Lab Addenbrookes,66105,Rent,"Rental and service charge for Microbiology lab at Cambridge University Hospital as per contract to be signed.  15/16 figures used, up lift still to be agreed.
Nov 2016",NHS,NHTRGTFT
Department of Health,Public Health England,CAMBRIDGE UNIVERSITY HOSPITAL NHS FOUNDATION TRUST,14-Jun-2017,6200317,11416.68,NULL,BPY1,NIS: Cambridge Lab Addenbrookes,66105,Rent,"Rental and service charge for Microbiology lab at Cambridge University Hospital as per contract to be signed.  15/16 figures used, up lift still to be agreed.
Jan 2017",NHS,NHTRGTFT
Department of Health,Public Health England,CAMBRIDGE UNIVERSITY HOSPITAL NHS FOUNDATION TRUST,14-Jun-2017,6200317,11416.69,NULL,BPY1,NIS: Cambridge Lab Addenbrookes,66105,Rent,"Rental and service charge for Microbiology lab at Cambridge University Hospital as per contract to be signed.  15/16 figures used, up lift still to be agreed.
Mar 2017",NHS,NHTRGTFT
Department of Health,Public Health England,CAMBRIDGE UNIVERSITY HOSPITAL NHS FOUNDATION TRUST,14-Jun-2017,6200317,11416.69,NULL,BPY1,NIS: Cambridge Lab Addenbrookes,66105,Rent,"Rental and service charge for Microbiology lab at Cambridge University Hospital as per contract to be signed.  15/16 figures used, up lift still to be agreed.
Feb 2017",NHS,NHTRGTFT
Department of Health,Public Health England,CAMBRIDGE UNIVERSITY HOSPITAL NHS FOUNDATION TRUST,14-Jun-2017,6200321,137000.00,NULL,BPY1,NIS: Cambridge Lab Addenbrookes,66105,Rent,IT RECHARGES ,NHS,NHTRGTFT
Department of Health,Public Health England,GREATER MANCHESTER FIRE & RESCUE SERVICE,14-Jun-2017,6200376,5000.00,NULL,WCA2,OWD: Professional Workforce Development,54360,Other Outsourced Services,6558052,PUBLIC SECTOR COMPANIES,NOT CGA
Department of Health,Public Health England,GREATER MANCHESTER FIRE & RESCUE SERVICE,14-Jun-2017,6200376,25000.00,NULL,WCA2,OWD: Professional Workforce Development,54360,Other Outsourced Services,Collaboration agreement - PHE and Greater Manchester Fire and Rescue Service,PUBLIC SECTOR COMPANIES,NOT CGA
Department of Health,Public Health England,TEESSIDE UNIVERSITY,14-Jun-2017,6202265,5000.00,NULL,UHE7,HI: COS & Responsibility Programme,54345,Other Subcontracted Services,6566053,PUBLIC SECTOR COMPANIES,NOT CGA
Department of Health,Public Health England,TEESSIDE UNIVERSITY,14-Jun-2017,6202265,25000.00,NULL,UHE7,HI: COS & Responsibility Programme,54345,Other Subcontracted Services,Teeside University: Design & Delivery of Weight Management Toolkits Project.,PUBLIC SECTOR COMPANIES,NOT CGA
Department of Health,Public Health England,EMCOR GROUP UK PLC,19-Jun-2017,5962213,5823.57,108912,JSM0,NIS: Porton FM Engineering Maintenance Svs Facilities Project Centre,68440,Reactive Maintenance,6512846 PO CLOSED 6570704,VENDOR,NOT CGA
Department of Health,Public Health England,EMCOR GROUP UK PLC,19-Jun-2017,5962213,29117.83,108912,JSM0,NIS: Porton FM Engineering Maintenance Svs Facilities Project Centre,68440,Reactive Maintenance,Reactive maintenance services for R&D (PHE) and ancillary services at Porton site. Feb & March 2016/17 Period  (overdue invoices) see attached.,VENDOR,NOT CGA
Department of Health,Public Health England,CURRIE & BROWN (UK) LIMITED,19-Jun-2017,6018237,16711.42,110297,ZZZA,Balance Sheet,93365,AUC - Contract Services,6503014,VENDOR,NOT CGA
Department of Health,Public Health England,CURRIE & BROWN (UK) LIMITED,19-Jun-2017,6018237,83557.10,110297,ZZZA,Balance Sheet,93365,AUC - Contract Services,Provision of Programme Management Support Office as detailed in the Service Provider Enquiry (15/003/PMSO/SPE/001) to December 2017. Core Services as per Sweett Service Delivery Plan v0.3. All T&Cs set out in SPE. For commission phase 1.,VENDOR,NOT CGA
Department of Health,Public Health England,CURRIE & BROWN (UK) LIMITED,19-Jun-2017,6178242,15356.42,110297,ZZZA,Balance Sheet,93365,AUC - Contract Services,6503014 F/B,VENDOR,NOT CGA
Department of Health,Public Health England,CURRIE & BROWN (UK) LIMITED,19-Jun-2017,6178242,76782.08,110297,ZZZA,Balance Sheet,93365,AUC - Contract Services,Provision of Programme Management Support Office as detailed in the Service Provider Enquiry (15/003/PMSO/SPE/001) to December 2017. Core Services as per Sweett Service Delivery Plan v0.3. All T&Cs set out in SPE. For commission phase 1.,VENDOR,NOT CGA
Department of Health,Public Health England,NORTHGATE PUBLIC SERVICES (UK) LIMITED,19-Jun-2017,6203207,10717.47,NULL,UCD5,HI: ESP Newborn Bloodspot Screening,61615,IT Licences,6557661,VENDOR,NOT CGA
Department of Health,Public Health England,NORTHGATE PUBLIC SERVICES (UK) LIMITED,19-Jun-2017,6203207,53587.36,NULL,UCD5,HI: ESP Newborn Bloodspot Screening,61615,IT Licences,Newborn Blood Spot Failsafe - V3.0 Release Costs as per attached Change Control Note CCN013.,VENDOR,NOT CGA
Department of Health,Public Health England,HEALTH AND SOCIAL CARE INFORMATION CENTRE,19-Jun-2017,6203326,5601.71,NULL,VEA6,VAC: Vaccines and Countermeasures Panflu Programmes,54360,Other Outsourced Services,6559208,TAX AUTHORITY,NHTHIC033
Department of Health,Public Health England,HEALTH AND SOCIAL CARE INFORMATION CENTRE,19-Jun-2017,6203326,28008.54,NULL,VEA6,VAC: Vaccines and Countermeasures Panflu Programmes,54360,Other Outsourced Services,National Pandemic Flu Service (NPFS) - dormant service management 1Dec16 - 7Apr18,TAX AUTHORITY,NHTHIC033
Department of Health,Public Health England,KINGS COLLEGE HOSPITAL NHS TRUST,19-Jun-2017,6203392,41669.00,NULL,UFA2,HI: NCS Breast,54360,Other Outsourced Services,Kings College Hospital NHS FT: Breast Age Extension 2017-18 South East London (GCA). Fixed Price SLA,NHS,NHTRJZFT
Department of Health,Public Health England,CURRIE & BROWN (UK) LIMITED,19-Jun-2017,6203412,16797.31,110297,ZZZA,Balance Sheet,93365,AUC - Contract Services,6503014,VENDOR,NOT CGA
Department of Health,Public Health England,CURRIE & BROWN (UK) LIMITED,19-Jun-2017,6203412,83986.58,110297,ZZZA,Balance Sheet,93365,AUC - Contract Services,Provision of Programme Management Support Office as detailed in the Service Provider Enquiry (15/003/PMSO/SPE/001) to December 2017. Core Services as per Sweett Service Delivery Plan v0.3. All T&Cs set out in SPE. For commission phase 1.,VENDOR,NOT CGA
Department of Health,Public Health England,THE TAVISTOCK AND PORTMAN NHS FOUNDATION TRUST,19-Jun-2017,6203451,669452.25,NULL,UIA6,HI: CYP&F: Family Nurse Partnership (FNP),54360,Other Outsourced Services,"Delivery of Family Nurse Partnership 2017  2018 Quarter 1, April � June 2017",NHS,NHTRNKFT
Department of Health,Public Health England,COMPUTACENTER (UK) LTD,19-Jun-2017,6203513,11475.89,110135,ZZZA,Balance Sheet,93350,AUC - IT Equipment,6557074,VENDOR,NOT CGA
Department of Health,Public Health England,COMPUTACENTER (UK) LTD,19-Jun-2017,6203513,57379.49,110135,ZZZA,Balance Sheet,93350,AUC - IT Equipment,Controllers: Dual 4G CacheStorage - SSD: 6 x 3.84TB SSD SAS mixed use 12 Gbps 2.5inStorage - Std: 6 x 1.8TB 10K RPM SAS 12Gbps 512e 2.5inNetworking: SFP x 2,VENDOR,NOT CGA
Department of Health,Public Health England,COMPUTACENTER (UK) LTD,19-Jun-2017,6203514,19579.00,NULL,PQB1,FCD: ICT,61310,Computer Repairs & Maintenance,6566173,VENDOR,NOT CGA
Department of Health,Public Health England,COMPUTACENTER (UK) LTD,19-Jun-2017,6203514,97895.00,NULL,PQB1,FCD: ICT,61310,Computer Repairs & Maintenance,One years support for all PHE Nexsan Storage as per PHE Tender ITT_2737,VENDOR,NOT CGA
Department of Health,Public Health England,COMPUTACENTER (UK) LTD,19-Jun-2017,6203515,21240.00,NULL,PQB1,FCD: ICT,61310,Computer Repairs & Maintenance,6566172,VENDOR,NOT CGA
Department of Health,Public Health England,COMPUTACENTER (UK) LTD,19-Jun-2017,6203515,106200.00,NULL,PQB1,FCD: ICT,61310,Computer Repairs & Maintenance,"One years support (2017/2018) for PHE DataCore environment, as per PHE Tender ITT_2735",VENDOR,NOT CGA
Department of Health,Public Health England,RIDER LEVETT BUCKNALL,19-Jun-2017,6204243,40282.93,110297,ZZZA,Balance Sheet,93370,AUC - Professional Services,6536064/ 6570708,VENDOR,NOT CGA
Department of Health,Public Health England,RIDER LEVETT BUCKNALL,19-Jun-2017,6204243,44305.00,110297,ZZZA,Balance Sheet,93370,AUC - Professional Services,Provision of Project Management support services. In accordance with the terms and conditions of the framework agreement.,VENDOR,NOT CGA
Department of Health,Public Health England,RIDER LEVETT BUCKNALL,19-Jun-2017,6204243,157109.64,110297,ZZZA,Balance Sheet,93370,AUC - Professional Services,Provision of Project Management support services. In accordance with the terms and conditions of the framework agreement.,VENDOR,NOT CGA
Department of Health,Public Health England,ILLUMINA CAMBRIDGE LTD,19-Jun-2017,6204510,5723.07,NULL,BFB7,NIS: Birmingham Lab Regional Tuberculosis Centre,47105,Lab Equipment Repairs and Maintenance,6566795,VENDOR,NOT CGA
Department of Health,Public Health England,ILLUMINA CAMBRIDGE LTD,19-Jun-2017,6204510,9538.45,NULL,BFB7,NIS: Birmingham Lab Regional Tuberculosis Centre,47105,Lab Equipment Repairs and Maintenance,"SSV-420-1003
S/N: M01740
Product Care MiSeq� Comprehensive Plan:",VENDOR,NOT CGA
Department of Health,Public Health England,ILLUMINA CAMBRIDGE LTD,19-Jun-2017,6204510,9538.45,NULL,BFB7,NIS: Birmingham Lab Regional Tuberculosis Centre,47105,Lab Equipment Repairs and Maintenance,"SV-420-1003
S/N: M03225
Product Care MiSeq� Comprehensive Plan:",VENDOR,NOT CGA
Department of Health,Public Health England,ILLUMINA CAMBRIDGE LTD,19-Jun-2017,6204510,9538.45,NULL,BFB7,NIS: Birmingham Lab Regional Tuberculosis Centre,47105,Lab Equipment Repairs and Maintenance,"SV-420-1003
S/N: M03594
Product Care MiSeq� Comprehensive Plan:",VENDOR,NOT CGA
Department of Health,Public Health England,NAFIC NFSW,19-Jun-2017,6204580,10393.75,NULL,BBF7,NIS: York FWE Site Overheads,66105,Rent,6567958,COMPANY,NOT CGA
Department of Health,Public Health England,NAFIC NFSW,19-Jun-2017,6204580,11579.75,NULL,BBF7,NIS: York FWE Site Overheads,66105,Rent,York FWE Blocks 9&10 - PHE2 Principal Rent -,COMPANY,NOT CGA
Department of Health,Public Health England,NAFIC NFSW,19-Jun-2017,6204580,40389.00,NULL,BBF7,NIS: York FWE Site Overheads,66105,Rent,York FWE Blocks 9&10 - PHE2 Service Charge ,COMPANY,NOT CGA
Department of Health,Public Health England,FAULKNERBROWNS ARCHITECTS,19-Jun-2017,6206377,59585.20,110297,ZZZA,Balance Sheet,93370,AUC - Professional Services,6568479,VENDOR,NOT CGA
Department of Health,Public Health England,FAULKNERBROWNS ARCHITECTS,19-Jun-2017,6206377,297926.00,110297,ZZZA,Balance Sheet,93370,AUC - Professional Services,P14.1 Master planning and P14.2 Town planning Stage 2 activities - Phase 14 (April 2017). Framework parnters T&C apply. Inclusive of PAF. M-277,VENDOR,NOT CGA
Department of Health,Public Health England,M&C SAATCHI (UK) LTD,19-Jun-2017,6206383,26246.36,NULL,UMA3,MKT: Starting Well: Change4Life,59027,Social Marketing - Creative development,6568676,VENDOR,NOT CGA
Department of Health,Public Health England,M&C SAATCHI (UK) LTD,19-Jun-2017,6206383,131231.78,NULL,UMA3,MKT: Starting Well: Change4Life,59027,Social Marketing - Creative development,Provision of service C4L10MSU fees,VENDOR,NOT CGA
Department of Health,Public Health England,B BRAUN MEDICAL LTD,19-Jun-2017,6206480,6900.00,NULL,UFA5,HI: NCS Bowel,54360,Other Outsourced Services,6567056,NULL,NOT CGA
Department of Health,Public Health England,B BRAUN MEDICAL LTD,19-Jun-2017,6206480,34500.00,NULL,UFA5,HI: NCS Bowel,54360,Other Outsourced Services,B Braun Clyssie Beutel 120ml CE - enemas - PHE-403-200K,NULL,NOT CGA
Department of Health,Public Health England,SARD JV LIMITED,19-Jun-2017,6206502,4466.00,NULL,BSE1,HP: Medical Directors Office Medical Revalidation,93350,AUC - IT Equipment,6567916,VENDOR,NOT CGA
Department of Health,Public Health England,SARD JV LIMITED,19-Jun-2017,6206502,22330.00,NULL,BSE1,HP: Medical Directors Office Medical Revalidation,93350,AUC - IT Equipment,SARD Revalidation software,VENDOR,NOT CGA
Department of Health,Public Health England,QUEEN MARY UNIVERSITY OF LONDON,19-Jun-2017,6206562,30230.84,NULL,UFA3,HI: NCS Cervical,54360,Other Outsourced Services,Queen Mary University of London: Service Agreement for the provision of Phase 2 of the Epidemiological evaluation of the HPV Primary Screening year 1 & 2,PUBLIC SECTOR COMPANIES,NOT CGA
Department of Health,Public Health England,INFOMAX LTD,19-Jun-2017,6206596,54134.51,NULL,VEA7,VAC: Vaccines and Countermeasures C&A Programmes,61610,Software Maint & Support Costs,6567850,NULL,NOT CGA
Department of Health,Public Health England,INFOMAX LTD,19-Jun-2017,6206596,270672.57,NULL,VEA7,VAC: Vaccines and Countermeasures C&A Programmes,61610,Software Maint & Support Costs,ImmForm Managed Services Contract extension for up to 6mths,NULL,NOT CGA
Department of Health,Public Health England,UNIVERSITY OF LIVERPOOL,21-Jun-2017,6124250,194359.46,110248,JPU0,NIS: Virology & Pathogenesis Project Centre,54345,Other Subcontracted Services,JXR12124 CLAIM ,PUBLIC SECTOR COMPANIES,NOT CGA
Department of Health,Public Health England,VIRGIN MEDIA BUSINESS,21-Jun-2017,6208162,66297.63,NULL,PQB1,FCD: ICT,61315,WAN Line Rental,6483482,VENDOR,NOT CGA
Department of Health,Public Health England,VIRGIN MEDIA BUSINESS,21-Jun-2017,6208162,271162.01,NULL,PQB1,FCD: ICT,61315,WAN Line Rental,Rental Charges - This is an estimated yearly charges to pay invoices against Acct No. 917315,VENDOR,NOT CGA
Department of Health,Public Health England,USERZOOM LIMITED,21-Jun-2017,6208256,4918.00,NULL,KDF5,FCD: Digital,74130,Operating Licences (Non-IT) & Accreditation Fees,6567317,VENDOR,NOT CGA
Department of Health,Public Health England,USERZOOM LIMITED,21-Jun-2017,6208256,24590.00,NULL,KDF5,FCD: Digital,74130,Operating Licences (Non-IT) & Accreditation Fees,"User Zoom annual service agreement: PHE�s Core UX Team Government-Agency GDS License
Subscription Period:",VENDOR,NOT CGA
Department of Health,Public Health England,M&C SAATCHI (UK) LTD,21-Jun-2017,6208416,9630.30,NULL,UMB3,MKT: Living Well: One You,59028,Social Marketing - PR,6559235,VENDOR,NOT CGA
Department of Health,Public Health England,M&C SAATCHI (UK) LTD,21-Jun-2017,6208416,48151.50,NULL,UMB3,MKT: Living Well: One You,59028,Social Marketing - PR,One You/Physical Activity consumer engagement/rest of F/Y,VENDOR,NOT CGA
Department of Health,Public Health England,TECAN (UK) LTD,21-Jun-2017,6208435,327.00,110698,ZZZA,Balance Sheet,93340,AUC - Plant & Equipment,CARRIER MP ROMA 3 POS. LANDSCAPE,VENDOR,NOT CGA
Department of Health,Public Health England,TECAN (UK) LTD,21-Jun-2017,6208435,444.60,110698,ZZZA,Balance Sheet,93340,AUC - Plant & Equipment,INSERT 10MM STRIPRACK 12MM*12.7MM SET 16 (optional material Q20164910-02),VENDOR,NOT CGA
Department of Health,Public Health England,TECAN (UK) LTD,21-Jun-2017,6208435,639.00,110698,ZZZA,Balance Sheet,93340,AUC - Plant & Equipment,RACK STRIP 16 POS. TUBE 10MM 1 PCE. (optional material quote Q20164910-02),VENDOR,NOT CGA
Department of Health,Public Health England,TECAN (UK) LTD,21-Jun-2017,6208435,1041.00,110698,ZZZA,Balance Sheet,93340,AUC - Plant & Equipment,DITI LIHA 1000�L CONDU.FIL.9600 PCE.,VENDOR,NOT CGA
Department of Health,Public Health England,TECAN (UK) LTD,21-Jun-2017,6208435,2161.50,110698,ZZZA,Balance Sheet,93340,AUC - Plant & Equipment,DITI LIHA 200�L CONDU.FIL.17280 PCE,VENDOR,NOT CGA
Department of Health,Public Health England,TECAN (UK) LTD,21-Jun-2017,6208435,11518.77,110698,ZZZA,Balance Sheet,93340,AUC - Plant & Equipment,6558237,VENDOR,NOT CGA
Department of Health,Public Health England,TECAN (UK) LTD,21-Jun-2017,6208435,52980.76,110698,ZZZA,Balance Sheet,93340,AUC - Plant & Equipment,"EVO100 with 8 Channel Arm for Sample Aliquotting and
Splitting (quote ref Q20164910).
ECM",VENDOR,NOT CGA
Department of Health,Public Health England,TECAN (UK) LTD,21-Jun-2017,6208436,25652.15,110832,ZZZA,Balance Sheet,93340,AUC - Plant & Equipment,6557100,VENDOR,NOT CGA
Department of Health,Public Health England,TECAN (UK) LTD,21-Jun-2017,6208436,128260.76,110832,ZZZA,Balance Sheet,93340,AUC - Plant & Equipment,EVO150 System for HAI Processing,VENDOR,NOT CGA
Department of Health,Public Health England,SPECTRA LOGIC EUROPE LIMITED,21-Jun-2017,6208476,1791.23,NULL,PQB1,FCD: ICT,61310,Computer Repairs & Maintenance,"Customer No. 1009874-0001 - Model: T50e, 2 LTO-5, 49 Slots - Serial No. DE63400971 - Service Level: NBD On Site - Part No. 90970502R",VENDOR,NOT CGA
Department of Health,Public Health England,SPECTRA LOGIC EUROPE LIMITED,21-Jun-2017,6208476,2339.39,NULL,PQB1,FCD: ICT,61310,Computer Repairs & Maintenance,"Customer No. 1009840-0001 - Model: T50e, 3 LTO-4, 47 Slots - Serial No. DE63401854 - Service Level: NBD On Site - Part No. 90970502R",VENDOR,NOT CGA
Department of Health,Public Health England,SPECTRA LOGIC EUROPE LIMITED,21-Jun-2017,6208476,6290.46,NULL,PQB1,FCD: ICT,61310,Computer Repairs & Maintenance,6567848,VENDOR,NOT CGA
Department of Health,Public Health England,SPECTRA LOGIC EUROPE LIMITED,21-Jun-2017,6208476,6390.16,NULL,PQB1,FCD: ICT,61310,Computer Repairs & Maintenance,"Customer No. 1015593 - Model: T120, 6 LTO-7, 30 Slots - Serial No. 0847501 - Service Level: NBD On Site - Part No. 90950500R",VENDOR,NOT CGA
Department of Health,Public Health England,SPECTRA LOGIC EUROPE LIMITED,21-Jun-2017,6208476,6977.17,NULL,PQB1,FCD: ICT,61310,Computer Repairs & Maintenance,"Customer No. 1015593 - Model: T120, 6 LTO-7, 120 Slots - Serial No. 1204503 - Service Level: NBD On Site -Part No. 90950500R",VENDOR,NOT CGA
Department of Health,Public Health England,SPECTRA LOGIC EUROPE LIMITED,21-Jun-2017,6208476,6977.17,NULL,PQB1,FCD: ICT,61310,Computer Repairs & Maintenance,"Customer No. 1015593 - Model: T120, 6 LTO-7, 120 Slots - Serial No. 1005504 - Service Level: NBD On Site -Part No. 90950500R",VENDOR,NOT CGA
Department of Health,Public Health England,SPECTRA LOGIC EUROPE LIMITED,21-Jun-2017,6208476,6977.17,NULL,PQB1,FCD: ICT,61310,Computer Repairs & Maintenance,"Customer No. 1016991 - Model: T120, 6 LTO-4, 120 Slots - Serial No. 1211506 - Service Level: NBD On Site -Part No. 90950500R",VENDOR,NOT CGA
Department of Health,Public Health England,ANDREW PORTER LIMITED,21-Jun-2017,6209238,5300.00,NULL,BVY1,NIS: Bristol Lab,47105,Lab Equipment Repairs and Maintenance,6569652,VENDOR,NOT CGA
Department of Health,Public Health England,ANDREW PORTER LIMITED,21-Jun-2017,6209238,26500.00,NULL,BVY1,NIS: Bristol Lab,47105,Lab Equipment Repairs and Maintenance,For the Laboratory Relocation from Myrtle Road to Southmead Hospital (as per invoice ID 17404),VENDOR,NOT CGA
Department of Health,Public Health England,ASCRIBE LTD,21-Jun-2017,6209343,11081.10,NULL,BGK2,NIS:  Real Time Syndromic Surveillance Team,54360,Other Outsourced Services,6570696,VENDOR,NOT CGA
Department of Health,Public Health England,ASCRIBE LTD,21-Jun-2017,6209343,55405.50,NULL,BGK2,NIS:  Real Time Syndromic Surveillance Team,54360,Other Outsourced Services,"ECM3906
Emergency Department Surveillance Data Supply 2017-18",VENDOR,NOT CGA
Department of Health,Public Health England,PATHOLOGY PARTNERSHIP (THE),21-Jun-2017,6209344,594730.00,NULL,BPY1,NIS: Cambridge Lab Addenbrookes,47240,Other Subcontracted Lab Servs,FULL & FINAL SETTLEMENT,NULL,NOT CGA
Department of Health,Public Health England,AGFA HEALTHCARE UK LIMITED,21-Jun-2017,6209349,28286.28,NULL,CNC4,C&R: Port Health Heathrow,54310,Sub-contracted Healthcare Advice,6569269,PRIVATE SECTOR,NOT CGA
Department of Health,Public Health England,AGFA HEALTHCARE UK LIMITED,21-Jun-2017,6209349,141431.40,NULL,CNC4,C&R: Port Health Heathrow,54310,Sub-contracted Healthcare Advice,Final payment for Agfa Healthcare,PRIVATE SECTOR,NOT CGA
Department of Health,Public Health England,MPL GROUP LIMITED,21-Jun-2017,6209362,9700.00,110899,ZZZA,Balance Sheet,93335,AUC - Land & Buildings,6568956,VENDOR,NOT CGA
Department of Health,Public Health England,MPL GROUP LIMITED,21-Jun-2017,6209362,48500.00,110899,ZZZA,Balance Sheet,93335,AUC - Land & Buildings,ECM  4898 Project : Refurbishment of Laboratories 4C07,VENDOR,NOT CGA
Department of Health,Public Health England,QIAGEN LIMITED,22-Jun-2017,6214380,35477.48,NULL,LTD1,HP: Radiation Effects,41130,Molecular Reagents,PyroMark Q48 Autoprep,VENDOR,NOT CGA
Department of Health,Public Health England,CORONA ENERGY RETAIL LIMITED,26-Jun-2017,5963238,9915.27,NULL,JSR0,NIS: Porton Site Services Facilities Project Centre,66405,Gas,6458440 GAS FOR HEALTH PROTECTION AGENCY PORTON DOWN ,VENDOR,NOT CGA
Department of Health,Public Health England,CORONA ENERGY RETAIL LIMITED,26-Jun-2017,5963238,49576.37,NULL,JSR0,NIS: Porton Site Services Facilities Project Centre,66405,Gas,"Supply of gas to PHE Porton Down against contract No 20404469,",VENDOR,NOT CGA
Department of Health,Public Health England,CORONA ENERGY RETAIL LIMITED,26-Jun-2017,5963244,20286.10,NULL,JSR0,NIS: Porton Site Services Facilities Project Centre,66405,Gas,6458440 GAS FOR HEALTH PROTECTION AGENCY PORTON DOWN ,VENDOR,NOT CGA
Department of Health,Public Health England,CORONA ENERGY RETAIL LIMITED,26-Jun-2017,5963244,101430.48,NULL,JSR0,NIS: Porton Site Services Facilities Project Centre,66405,Gas,"Supply of gas to PHE Porton Down against contract No 20404469, ",VENDOR,NOT CGA
Department of Health,Public Health England,KPMD IT SOLUTIONS LIMITED,26-Jun-2017,6004219,480.00,NULL,EKJ7,NIS: Food & Environmental Proficiency Testing Unit,61605,Minor Computer Software,6562974,VENDOR,NOT CGA
Department of Health,Public Health England,KPMD IT SOLUTIONS LIMITED,26-Jun-2017,6004219,2400.00,NULL,EKJ7,NIS: Food & Environmental Proficiency Testing Unit,61605,Minor Computer Software,"EQA Programme Management Software & Website
Annual hosting for website and distribution reports",VENDOR,NOT CGA
Department of Health,Public Health England,KPMD IT SOLUTIONS LIMITED,26-Jun-2017,6004219,3734.80,NULL,EKJ7,NIS: Food & Environmental Proficiency Testing Unit,61610,Software Maint & Support Costs,6562974,VENDOR,NOT CGA
Department of Health,Public Health England,KPMD IT SOLUTIONS LIMITED,26-Jun-2017,6004219,18674.00,NULL,EKJ7,NIS: Food & Environmental Proficiency Testing Unit,61610,Software Maint & Support Costs,"EQA Programme Management Software - annual support & licence
",VENDOR,NOT CGA
Department of Health,Public Health England,LUTON & DUNSTABLE HOSPITAL NHS TRUST,26-Jun-2017,6040224,35281.00,NULL,UFA2,HI: NCS Breast,54360,Other Outsourced Services,Luton & Dunstable NHS Foundation Trust - Breast Age Extension 2017-18 Beds & Herts (ELD). Fixed Price SLA ,NHS,NHTRC9FT
Department of Health,Public Health England,LUTON & DUNSTABLE HOSPITAL NHS TRUST,26-Jun-2017,6040224,35281.00,NULL,UFA2,HI: NCS Breast,54360,Other Outsourced Services,Luton & Dunstable NHS Foundation Trust - Breast Age Extension 2017-18 Beds & Herts (ELD). Fixed Price SLA ,NHS,NHTRC9FT
Department of Health,Public Health England,LUTON & DUNSTABLE HOSPITAL NHS TRUST,26-Jun-2017,6040224,35281.00,NULL,UFA2,HI: NCS Breast,54360,Other Outsourced Services,Luton & Dunstable NHS Foundation Trust - Breast Age Extension 2017-18 Beds & Herts (ELD). Fixed Price SLA ,NHS,NHTRC9FT
Department of Health,Public Health England,ICF CONSULTING SERVICES LIMITED,26-Jun-2017,6163736,5260.00,NULL,WFA2,HI: AH&W: Health and Work,12205,PHE Funding,6552311,VENDOR,NOT CGA
Department of Health,Public Health England,ICF CONSULTING SERVICES LIMITED,26-Jun-2017,6163736,26300.00,NULL,WFA2,HI: AH&W: Health and Work,12205,PHE Funding,Mapping of approaches to healthcare and business undergraduate education in England,VENDOR,NOT CGA
Department of Health,Public Health England,CARAT A TRADING DIV OF DENTSU AEGIS UK LIMITED,26-Jun-2017,6167225,8242.02,NULL,UMA3,MKT: Starting Well: Change4Life,59103,Social Marketing - Digital,6557446,VENDOR,NOT CGA
Department of Health,Public Health England,CARAT A TRADING DIV OF DENTSU AEGIS UK LIMITED,26-Jun-2017,6167225,41249.17,NULL,UMA3,MKT: Starting Well: Change4Life,59103,Social Marketing - Digital,Provision of service : C4L Be Food Smart March digital display,VENDOR,NOT CGA
Department of Health,Public Health England,CARAT A TRADING DIV OF DENTSU AEGIS UK LIMITED,26-Jun-2017,6167230,9921.18,NULL,UMA4,MKT: Ageing Well: Early Diagnosis,59035,Social Marketing - Posters,6566007,VENDOR,NOT CGA
Department of Health,Public Health England,CARAT A TRADING DIV OF DENTSU AEGIS UK LIMITED,26-Jun-2017,6167230,49653.98,NULL,UMA4,MKT: Ageing Well: Early Diagnosis,59035,Social Marketing - Posters,Be Clear On Cancer Respiratory Print,VENDOR,NOT CGA
Department of Health,Public Health England,CARAT A TRADING DIV OF DENTSU AEGIS UK LIMITED,26-Jun-2017,6167233,51761.11,NULL,UMA4,MKT: Ageing Well: Early Diagnosis,59008,Social Marketing Advertising,6557193,VENDOR,NOT CGA
Department of Health,Public Health England,CARAT A TRADING DIV OF DENTSU AEGIS UK LIMITED,26-Jun-2017,6167233,259056.56,NULL,UMA4,MKT: Ageing Well: Early Diagnosis,59008,Social Marketing Advertising,Be Clear On Cancer Respiratory  Television ,VENDOR,NOT CGA
Department of Health,Public Health England,CARAT A TRADING DIV OF DENTSU AEGIS UK LIMITED,26-Jun-2017,6167237,6137.32,NULL,UMA4,MKT: Ageing Well: Early Diagnosis,59008,Social Marketing Advertising,6557193,VENDOR,NOT CGA
Department of Health,Public Health England,CARAT A TRADING DIV OF DENTSU AEGIS UK LIMITED,26-Jun-2017,6167237,10944.33,NULL,UMA4,MKT: Ageing Well: Early Diagnosis,59008,Social Marketing Advertising,Be Clear On Cancer Respiratory  Television,VENDOR,NOT CGA
Department of Health,Public Health England,CARAT A TRADING DIV OF DENTSU AEGIS UK LIMITED,26-Jun-2017,6167237,19772.04,NULL,UMA4,MKT: Ageing Well: Early Diagnosis,59008,Social Marketing Advertising,Be Clear On Cancer Respiratory Television ,VENDOR,NOT CGA
Department of Health,Public Health England,SIMPLY BECAUSE LTD,26-Jun-2017,6200328,16953.61,NULL,UMA4,MKT: Ageing Well: Early Diagnosis,59036,Social Marketing - Direct Marketing,6567120,NULL,NOT CGA
Department of Health,Public Health England,SIMPLY BECAUSE LTD,26-Jun-2017,6200328,84768.05,NULL,UMA4,MKT: Ageing Well: Early Diagnosis,59036,Social Marketing - Direct Marketing,Be Clear on Cancer respiratory symptoms campaign 2017,NULL,NOT CGA
Department of Health,Public Health England,KINGS COLLEGE HOSPITAL NHS TRUST,26-Jun-2017,6203389,41669.00,NULL,UFA2,HI: NCS Breast,54360,Other Outsourced Services,Kings College Hospital NHS FT: Breast Age Extension 2017-18 South East London (GCA). Fixed Price SLA,NHS,NHTRJZFT
Department of Health,Public Health England,IMPERIAL COLLEGE HEALTHCARE NHS TRUST,26-Jun-2017,6211144,33696.00,NULL,UFA2,HI: NCS Breast,54360,Other Outsourced Services,Imperial College Healthcare NHST - Breast Age Extension 2017-18 West of London (ECX). Fixed Price SLA,NHS,NHTRYJNFT
Department of Health,Public Health England,UNIVERSITY HOSPITALS COVENTRY & WARWICKSHIRE NHS TRUST,26-Jun-2017,6211151,26553.00,NULL,UFA2,HI: NCS Breast,54360,Other Outsourced Services,"University Hospitals Coventry & Warwickshire NHST - Breast Age Extension 17-18 Warwickshire, Solihull & Coventry. Fixed Price SLA",PUBLIC SECTOR COMPANIES,NHTRKBNFT
Department of Health,Public Health England,SANDWELL & WEST BIRMINGHAM HOSPITALS NHS TRUST,26-Jun-2017,6211154,27425.66,NULL,UFA2,HI: NCS Breast,54360,Other Outsourced Services,"Sandwell and West Birmingham Hospitals NHST - Breast Age Extension 17-18 City, Sandwell & Walsall (MBD). Fixed Price SLA ",PUBLIC SECTOR COMPANIES,NHTRXKNFT
Department of Health,Public Health England,SANDWELL & WEST BIRMINGHAM HOSPITALS NHS TRUST,26-Jun-2017,6211156,27425.66,NULL,UFA2,HI: NCS Breast,54360,Other Outsourced Services,"Sandwell and West Birmingham Hospitals NHST - Breast Age Extension 17-18 City, Sandwell & Walsall (MBD). Fixed Price SLA",PUBLIC SECTOR COMPANIES,NHTRXKNFT
Department of Health,Public Health England,SANDWELL & WEST BIRMINGHAM HOSPITALS NHS TRUST,26-Jun-2017,6211157,27425.66,NULL,UFA2,HI: NCS Breast,54360,Other Outsourced Services,"Sandwell and West Birmingham Hospitals NHST - Breast Age Extension 17-18 City, Sandwell & Walsall (MBD). Fixed Price SLA -",PUBLIC SECTOR COMPANIES,NHTRXKNFT
Department of Health,Public Health England,HCL TECHNOLOGIES UK LIMITED,26-Jun-2017,6211379,26220.00,NULL,PQB1,FCD: ICT,61610,Software Maint & Support Costs,"Platinum Care Pack Support Contract Renewal - 
15 Proactive Days
25 Support Calls",VENDOR,NOT CGA
Department of Health,Public Health England,MPL GROUP LIMITED,26-Jun-2017,6214224,5831.60,110825,ZZZA,Balance Sheet,93335,AUC - Land & Buildings,6558773,VENDOR,NOT CGA
Department of Health,Public Health England,MPL GROUP LIMITED,26-Jun-2017,6214224,29158.00,110825,ZZZA,Balance Sheet,93335,AUC - Land & Buildings,ECM - 4596 - AS YOUR QUOTE DATED 18 JANUARY 2017 FOR PREPARING THE INFRASTRUCTURE WORKS FOR SUPPLY A ND INSTALLATION OF WINDOW SECURITY LOCKS,VENDOR,NOT CGA
Department of Health,Public Health England,OGILVYONE,26-Jun-2017,6218097,12843.00,NULL,UMB5,MKT: Ageing Well: AMR,59002,Social Marketing - Fulfilment,6560932,VENDOR,NOT CGA
Department of Health,Public Health England,OGILVYONE,26-Jun-2017,6218097,64215.00,NULL,UMB5,MKT: Ageing Well: AMR,59002,Social Marketing - Fulfilment,C4L 10MSU 2017 Pack Design,VENDOR,NOT CGA
Department of Health,Public Health England,JONES LANG LASALLE,26-Jun-2017,6218223,35400.00,NULL,HOX1,FCD: Chancellor Court Oxford,66105,Rent,RENT 24.06.17 - 28.09.17,VENDOR,NOT CGA
Department of Health,Public Health England,SICKLE CELL SOCIETY,26-Jun-2017,6218289,12490.75,NULL,UCD4,HI: ESP Sickle Cell & Thalassemia Screening,54360,Other Outsourced Services,ECM_3607 Public & service user engagement/consultation to support NHS SCT Screening Prog.  Thalassaemia Services (ITT 2074). Contract awarded - Collaborative Agreement (The Sickle Cell Society & The UK Thalassaemia Society),VENDOR,NOT CGA
Department of Health,Public Health England,SICKLE CELL SOCIETY,26-Jun-2017,6218289,14986.00,NULL,UCD4,HI: ESP Sickle Cell & Thalassemia Screening,54360,Other Outsourced Services,ECM_3606 Public & service user engagement/consultation to support NHS SCT Screening Prog.  Sickle Cell Services (ITT 2073). Contract awarded - Collaborative Agreement (The Sickle Cell Society & The UK Thalassaemia Society),VENDOR,NOT CGA
Department of Health,Public Health England,OVE ARUP & PARTNERS LIMITED,26-Jun-2017,6218310,5466.80,110297,ZZZA,Balance Sheet,93370,AUC - Professional Services,6566798,VENDOR,NOT CGA
Department of Health,Public Health England,OVE ARUP & PARTNERS LIMITED,26-Jun-2017,6218310,27334.00,110297,ZZZA,Balance Sheet,93370,AUC - Professional Services,Programme Security Project Manager service  framework T&Cs apply. CEI 201,VENDOR,NOT CGA
Department of Health,Public Health England,HITACHI CONSULTING UK LTD,28-Jun-2017,6163143,47242.87,NULL,UFA2,HI: NCS Breast,61615,IT Licences,6537248,CONSULTANT,NOT CGA
Department of Health,Public Health England,HITACHI CONSULTING UK LTD,28-Jun-2017,6163143,236214.36,NULL,UFA2,HI: NCS Breast,61615,IT Licences,HITACHI NBSS Core services CCN0001 & CCN0002 contract ,CONSULTANT,NOT CGA
Department of Health,Public Health England,HITACHI CONSULTING UK LTD,28-Jun-2017,6163148,8144.74,NULL,UFA2,HI: NCS Breast,61615,IT Licences,6565849,CONSULTANT,NOT CGA
Department of Health,Public Health England,HITACHI CONSULTING UK LTD,28-Jun-2017,6163148,40723.73,NULL,UFA2,HI: NCS Breast,61615,IT Licences,HITACHI : Intersystem cache licences & SUTA for Breast Screening Service,CONSULTANT,NOT CGA
Department of Health,Public Health England,UNIVERSITY OF SHEFFIELD,28-Jun-2017,6167664,11714.90,NULL,UBA7,HI: D&A: Evidence Application,54360,Other Outsourced Services,6561703,VENDOR,NOT CGA
Department of Health,Public Health England,UNIVERSITY OF SHEFFIELD,28-Jun-2017,6167664,58574.50,NULL,UBA7,HI: D&A: Evidence Application,54360,Other Outsourced Services,Payment for University of Sheffield work on Parental Estimates (EMC 4382),VENDOR,NOT CGA
Department of Health,Public Health England,EAST KENT HOSPITALS NHS TRUST,28-Jun-2017,6211221,11276.00,NULL,UFA2,HI: NCS Breast,54360,Other Outsourced Services,East Kent Hospitals University NHSFT - Breast Age Extension 17-18 Maidstone. Fixed Price SLA ,NHS,NHTRVVNFT
Department of Health,Public Health England,EAST KENT HOSPITALS NHS TRUST,28-Jun-2017,6211221,13855.00,NULL,UFA2,HI: NCS Breast,54360,Other Outsourced Services,East Kent Hospitals University NHSFT - Breast Age Extension 17-18 Medway. Fixed Price SLA,NHS,NHTRVVNFT
Department of Health,Public Health England,EAST KENT HOSPITALS NHS TRUST,28-Jun-2017,6211221,14585.00,NULL,UFA2,HI: NCS Breast,54360,Other Outsourced Services,East Kent Hospitals University NHSFT - Breast Age Extension 17-18 Canterbury. Fixed Price SLA ,NHS,NHTRVVNFT
Department of Health,Public Health England,EAST KENT HOSPITALS NHS TRUST,28-Jun-2017,6211222,11276.00,NULL,UFA2,HI: NCS Breast,54360,Other Outsourced Services,East Kent Hospitals University NHSFT - Breast Age Extension 17-18 Maidstone. Fixed Price SLA ,NHS,NHTRVVNFT
Department of Health,Public Health England,EAST KENT HOSPITALS NHS TRUST,28-Jun-2017,6211222,13855.00,NULL,UFA2,HI: NCS Breast,54360,Other Outsourced Services,East Kent Hospitals University NHSFT - Breast Age Extension 17-18 Medway. Fixed Price SLA,NHS,NHTRVVNFT
Department of Health,Public Health England,EAST KENT HOSPITALS NHS TRUST,28-Jun-2017,6211222,14585.00,NULL,UFA2,HI: NCS Breast,54360,Other Outsourced Services,East Kent Hospitals University NHSFT - Breast Age Extension 17-18 Canterbury. Fixed Price SLA,NHS,NHTRVVNFT
Department of Health,Public Health England,EAST KENT HOSPITALS NHS TRUST,28-Jun-2017,6211223,11276.00,NULL,UFA2,HI: NCS Breast,54360,Other Outsourced Services,East Kent Hospitals University NHSFT - Breast Age Extension 17-18 Maidstone. Fixed Price SLA ,NHS,NHTRVVNFT
Department of Health,Public Health England,EAST KENT HOSPITALS NHS TRUST,28-Jun-2017,6211223,13855.00,NULL,UFA2,HI: NCS Breast,54360,Other Outsourced Services,East Kent Hospitals University NHSFT - Breast Age Extension 17-18 Medway. Fixed Price SLA ,NHS,NHTRVVNFT
Department of Health,Public Health England,EAST KENT HOSPITALS NHS TRUST,28-Jun-2017,6211223,14585.00,NULL,UFA2,HI: NCS Breast,54360,Other Outsourced Services,East Kent Hospitals University NHSFT - Breast Age Extension 17-18 Canterbury. Fixed Price SLA,NHS,NHTRVVNFT
Department of Health,Public Health England,CGI IT UK LIMITED,28-Jun-2017,6222164,4604.92,NULL,PYK2,HR: Payroll and Pensions,54360,Other Outsourced Services,6564257,VENDOR,NOT CGA
Department of Health,Public Health England,CGI IT UK LIMITED,28-Jun-2017,6222164,23024.61,NULL,PYK2,HR: Payroll and Pensions,54360,Other Outsourced Services,Payroll Services 2017-2018,VENDOR,NOT CGA
Department of Health,Public Health England,NORTHGATE PUBLIC SERVICES (UK) LIMITED,28-Jun-2017,6222229,47690.80,NULL,UCD7,HI: ESP Newborn Hearing Screening,61610,Software Maint & Support Costs,6572559,VENDOR,NOT CGA
Department of Health,Public Health England,NORTHGATE PUBLIC SERVICES (UK) LIMITED,28-Jun-2017,6222229,238454.00,NULL,UCD7,HI: ESP Newborn Hearing Screening,61610,Software Maint & Support Costs,Northgate: NHSP managed Contract ,VENDOR,NOT CGA
Department of Health,Public Health England,BECKMAN COULTER UK LTD,28-Jun-2017,6222312,6718.88,NULL,FFD3,NIS: CNGSS,41135,Other laboratory Consumables,6535842,VENDOR,NOT CGA
Department of Health,Public Health England,BECKMAN COULTER UK LTD,28-Jun-2017,6222312,8398.60,NULL,FFD3,NIS: CNGSS,41135,Other laboratory Consumables,"Biomek NXP Span-8 With Gripper A318400694 Instance No 4824293 Total Care OQ3 
",VENDOR,NOT CGA
Department of Health,Public Health England,BECKMAN COULTER UK LTD,28-Jun-2017,6222312,8398.60,NULL,FFD3,NIS: CNGSS,41135,Other laboratory Consumables,"Biomek NXP Span-8 With Gripper A318400695 Instance No 4813994 Total Care OQ3 
",VENDOR,NOT CGA
Department of Health,Public Health England,BECKMAN COULTER UK LTD,28-Jun-2017,6222312,8398.60,NULL,FFD3,NIS: CNGSS,41135,Other laboratory Consumables,"Biomek NXP Multichannel A318410730 Instance No 5041390 Total Care OQ3 
",VENDOR,NOT CGA
Department of Health,Public Health England,BECKMAN COULTER UK LTD,28-Jun-2017,6222312,8398.60,NULL,FFD3,NIS: CNGSS,41135,Other laboratory Consumables,"Biomek NXP Multichannel A318410731 Instance No 5046389 Total Care OQ3 
",VENDOR,NOT CGA
Department of Health,Public Health England,CARAT A TRADING DIV OF DENTSU AEGIS UK LIMITED,28-Jun-2017,6222441,4624.94,NULL,UMA4,MKT: Ageing Well: Early Diagnosis,59008,Social Marketing Advertising,6567095,VENDOR,NOT CGA
Department of Health,Public Health England,CARAT A TRADING DIV OF DENTSU AEGIS UK LIMITED,28-Jun-2017,6222441,23146.49,NULL,UMA4,MKT: Ageing Well: Early Diagnosis,59008,Social Marketing Advertising,Be Clear on Cancer respiratory symptoms campaign 2017 - digital advertising (biddable and pay-per-click) Ref RM1051,VENDOR,NOT CGA
Department of Health,Public Health England,VODAFONE LIMITED,28-Jun-2017,6222448,11.08,NULL,SHE4,COO: Health Protection Hants IOW Dorset,35305,Training,07711985007-REF:,VENDOR,NOT CGA
Department of Health,Public Health England,UK HEALTH FORUM,28-Jun-2017,6223127,4795.80,NULL,KDA4,STR: Health Economics,54110,Consultancy Fees,6547272,VENDOR,NOT CGA
Department of Health,Public Health England,UK HEALTH FORUM,28-Jun-2017,6223127,23979.00,NULL,KDA4,STR: Health Economics,54110,Consultancy Fees,Health Economics :cost to NHS and social care due to air pollution.,VENDOR,NOT CGA
Department of Health,Public Health England,DEPARTMENT FOR BUSINESS INNOVATION AND SKILLS,28-Jun-2017,6223156,118.00,NULL,HLN8,FCD: Salisbury Square London,66420,Water,FLEETBANK HOUSE RENT/COSTS QTR 1,PUBLIC SECTOR COMPANIES,BIS084
Department of Health,Public Health England,DEPARTMENT FOR BUSINESS INNOVATION AND SKILLS,28-Jun-2017,6223156,261.00,NULL,HLN8,FCD: Salisbury Square London,68426,Internal Buildings Planned Maintenance,FLEETBANK HOUSE RENT/COSTS QTR 1,PUBLIC SECTOR COMPANIES,BIS084
Department of Health,Public Health England,DEPARTMENT FOR BUSINESS INNOVATION AND SKILLS,28-Jun-2017,6223156,417.00,NULL,HLN8,FCD: Salisbury Square London,66120,Accomm Usage Recharge In,FLEETBANK HOUSE RENT/COSTS QTR 1,PUBLIC SECTOR COMPANIES,BIS084
Department of Health,Public Health England,DEPARTMENT FOR BUSINESS INNOVATION AND SKILLS,28-Jun-2017,6223156,1110.00,NULL,HLN8,FCD: Salisbury Square London,68110,Security Costs,FLEETBANK HOUSE RENT/COSTS QTR 1,PUBLIC SECTOR COMPANIES,BIS084
Department of Health,Public Health England,DEPARTMENT FOR BUSINESS INNOVATION AND SKILLS,28-Jun-2017,6223156,2148.00,NULL,HLN8,FCD: Salisbury Square London,68105,Cleaning Costs,FLEETBANK HOUSE RENT/COSTS QTR 1,PUBLIC SECTOR COMPANIES,BIS084
Department of Health,Public Health England,DEPARTMENT FOR BUSINESS INNOVATION AND SKILLS,28-Jun-2017,6223156,2319.00,NULL,HLN8,FCD: Salisbury Square London,68140,Sub-contracted Facilities Mgnt,FLEETBANK HOUSE RENT/COSTS QTR 1,PUBLIC SECTOR COMPANIES,BIS084
Department of Health,Public Health England,DEPARTMENT FOR BUSINESS INNOVATION AND SKILLS,28-Jun-2017,6223156,2539.00,NULL,HLN8,FCD: Salisbury Square London,68410,Fixtures and Fittings <5k,FLEETBANK HOUSE RENT/COSTS QTR 1,PUBLIC SECTOR COMPANIES,BIS084
Department of Health,Public Health England,DEPARTMENT FOR BUSINESS INNOVATION AND SKILLS,28-Jun-2017,6223156,3373.00,NULL,HLN8,FCD: Salisbury Square London,66410,Electricity,FLEETBANK HOUSE RENT/COSTS QTR 1,PUBLIC SECTOR COMPANIES,BIS084
Department of Health,Public Health England,DEPARTMENT FOR BUSINESS INNOVATION AND SKILLS,28-Jun-2017,6223156,10769.00,NULL,HLN8,FCD: Salisbury Square London,66110,Rates,FLEETBANK HOUSE RENT/COSTS QTR 1,PUBLIC SECTOR COMPANIES,BIS084
Department of Health,Public Health England,DEPARTMENT FOR BUSINESS INNOVATION AND SKILLS,28-Jun-2017,6223156,31504.00,NULL,HLN8,FCD: Salisbury Square London,66105,Rent,FLEETBANK HOUSE RENT/COSTS QTR 1,PUBLIC SECTOR COMPANIES,BIS084
Department of Health,Public Health England,NAFIC NFSW,28-Jun-2017,6223249,7062.05,NULL,BBF7,NIS: York FWE Site Overheads,66105,Rent,6546068,COMPANY,NOT CGA
Department of Health,Public Health England,NAFIC NFSW,28-Jun-2017,6223249,7867.88,NULL,BBF7,NIS: York FWE Site Overheads,66105,Rent,York FWE Blocks 9&10 - PHE2 Principal Rent - Q2 29th July 2016 -28/09/2016 (Capita took over site),COMPANY,NOT CGA
Department of Health,Public Health England,NAFIC NFSW,28-Jun-2017,6223249,27442.39,NULL,BBF7,NIS: York FWE Site Overheads,66105,Rent,York FWE Blocks 9&10 - PHE2 Service Charge - Q2 29th July 2016 -28/09/2016 (Capita took over site),COMPANY,NOT CGA
Department of Health,Public Health England,DAI Europe Limited,28-Jun-2017,6223376,6468.20,110768,SOL0,HP: Intl Health Regulation Project Centre,54110,Consultancy Fees,6565819,VENDOR,NOT CGA
Department of Health,Public Health England,DAI Europe Limited,28-Jun-2017,6223376,32341.00,110768,SOL0,HP: Intl Health Regulation Project Centre,54110,Consultancy Fees,Expert advisory services for an Institutional Stakeholder Analysis,VENDOR,NOT CGA
